{"text_format":"1","workbook":"xlsx","n_sheets":2,"sheets":["All Products","Sheet1"],"not_rendered":{"charts":0,"images":11,"macros":1,"external_links":0,"defined_names":4,"comments":0,"pivot_tables":0},"unopened":[],"bounds":{"document_bytes":16777216,"sheet_cells":100000,"rows_first":2000,"rows_last":500,"rows_between":2000,"halvings":0,"cell_chars":16384,"cell_head_chars":4096},"cells_cut":0,"cells_raw":0,"read":"whole","date_system":"1900"}

{"sheet":"All Products","index":0,"n_rows":194,"n_cols":151,"rows_kept":194,"cut":false,"hidden":false,"merged":[[197,121,197,126],[183,121,183,126],[187,121,187,126],[191,123,191,125],[119,3,119,7],[181,119,181,126],[182,118,182,126],[196,119,197,119],[196,121,196,126],[147,23,147,24],[147,34,147,36],[140,13,140,16],[139,3,139,7],[140,3,140,7],[119,51,119,54],[166,3,166,6],[140,31,140,37],[154,3,157,50],[195,121,195,126],[192,123,194,125],[133,27,133,41],[133,42,134,50],[135,43,136,50],[137,28,137,35],[121,3,121,9],[122,3,122,9],[123,3,123,9],[124,3,124,9],[125,3,125,9],[146,14,146,23],[124,10,124,12],[125,10,125,12],[127,3,127,9],[126,3,126,9],[127,10,127,12],[142,3,142,7],[143,3,143,7],[136,8,137,10],[136,3,137,7],[138,8,138,10],[139,8,139,10],[122,10,122,12],[114,34,114,40],[128,34,128,35],[139,31,139,37],[121,20,121,23],[122,20,122,23],[126,20,126,23],[124,29,124,33],[125,29,125,33],[124,24,124,28],[126,24,126,28],[125,24,125,28],[126,34,126,40],[118,34,118,40],[120,34,120,40],[125,34,125,40],[136,17,137,21],[117,24,117,28],[114,29,114,33],[126,29,126,33],[120,29,120,33],[117,29,117,33],[120,24,120,28],[116,24,116,28],[114,24,114,28],[111,13,111,15],[114,3,114,9],[116,3,116,9],[117,3,117,9],[109,20,109,23],[103,13,103,15],[105,10,105,12],[107,13,107,15],[107,16,107,19],[116,16,116,19],[114,16,114,19],[117,20,117,23],[114,13,114,15],[114,20,114,23],[113,13,113,15],[117,16,117,19],[104,20,104,23],[116,20,116,23],[112,20,112,23],[107,20,107,23],[117,13,117,15],[116,13,116,15],[113,16,113,19],[105,20,105,23],[118,3,118,9],[120,3,120,9],[109,3,109,9],[110,3,110,9],[111,3,111,9],[112,3,112,9],[113,3,113,9],[103,3,103,8],[104,10,104,12],[107,10,107,12],[103,10,103,12],[106,10,106,12],[112,10,112,12],[120,10,120,12],[118,10,118,12],[108,10,108,12],[104,3,104,8],[108,3,108,7],[110,10,110,12],[109,10,109,12],[0,139,3,144],[91,3,91,9],[92,3,92,9],[93,3,93,9],[94,3,94,9],[95,3,95,9],[96,3,96,9],[97,3,97,9],[98,3,98,9],[95,29,95,33],[83,51,83,53],[87,51,87,53],[88,51,88,53],[96,20,96,23],[97,20,97,23],[96,29,96,33],[48,2,48,9],[39,30,40,38],[51,30,51,38],[51,39,51,41],[42,30,42,38],[47,15,47,16],[71,52,71,53],[61,52,61,53],[110,20,110,23],[43,30,43,53],[107,24,107,28],[101,3,101,9],[102,3,102,9],[106,3,106,9],[107,3,107,9],[105,3,105,9],[106,13,106,15],[104,13,104,15],[109,13,109,15],[110,13,110,15],[101,16,101,19],[101,10,101,12],[99,3,100,9],[99,10,100,12],[99,13,100,15],[99,16,100,19],[99,20,100,23],[99,24,100,28],[99,29,100,33],[109,51,109,53],[99,34,100,40],[99,41,100,46],[99,47,100,50],[99,51,100,53],[84,41,84,42],[85,41,85,42],[83,28,83,40],[96,41,96,46],[85,28,85,40],[91,29,91,33],[102,29,102,33],[86,43,86,46],[92,47,92,50],[91,41,91,46],[95,41,95,46],[93,41,93,46],[94,47,94,50],[95,47,95,50],[98,47,98,50],[93,47,93,50],[96,47,96,50],[98,41,98,46],[97,41,97,46],[94,41,94,46],[103,29,103,33],[106,29,106,33],[104,29,104,33],[101,34,101,40],[109,41,109,46],[109,47,109,50],[107,41,107,46],[107,47,107,50],[108,51,108,53],[102,41,102,46],[101,41,101,46],[107,29,107,33],[105,29,105,33],[101,47,101,50],[102,47,102,50],[116,34,116,40],[11,30,11,53],[19,135,20,135],[19,132,20,134],[30,46,30,47],[31,46,31,47],[30,48,30,49],[31,48,31,49],[28,42,29,45],[30,50,30,51],[18,48,18,49],[28,30,29,38],[14,30,16,53],[19,42,19,45],[19,30,19,38],[51,50,51,51],[51,52,51,53],[12,30,13,53],[50,42,50,45],[97,47,97,50],[89,48,89,50],[61,48,61,49],[102,51,102,53],[91,47,91,50],[103,47,103,50],[103,41,103,46],[111,47,111,50],[111,41,111,46],[112,34,112,40],[110,47,110,50],[110,41,110,46],[110,34,110,40],[109,34,109,40],[108,47,108,50],[104,41,104,46],[107,34,107,40],[106,34,106,40],[105,34,105,40],[103,34,103,40],[109,24,109,28],[110,29,110,33],[109,29,109,33],[112,24,112,28],[112,47,112,50],[105,41,105,46],[106,41,106,46],[106,47,106,50],[105,47,105,50],[112,41,112,46],[111,34,111,40],[112,16,112,19],[96,10,96,12],[104,24,104,28],[105,24,105,28],[104,34,104,40],[104,47,104,50],[102,20,102,23],[106,20,106,23],[103,20,103,23],[103,16,103,19],[97,34,97,40],[98,29,98,33],[101,24,101,28],[103,24,103,28],[102,24,102,28],[106,16,106,19],[102,34,102,40],[101,29,101,33],[97,16,97,19],[106,24,106,28],[111,24,111,28],[111,29,111,33],[112,29,112,33],[110,24,110,28],[61,15,61,16],[61,19,61,22],[61,17,61,18],[60,17,60,18],[60,15,60,16],[113,24,113,28],[113,29,113,33],[109,16,109,19],[110,16,110,19],[105,16,105,19],[67,2,68,24],[69,2,69,24],[70,30,70,38],[71,30,71,38],[66,30,67,53],[70,52,70,53],[71,50,71,51],[70,48,70,49],[68,48,69,51],[70,42,70,45],[68,42,69,45],[71,42,71,45],[71,46,71,47],[98,16,98,19],[42,42,42,45],[45,30,46,53],[42,48,42,49],[58,52,59,53],[73,23,73,24],[41,39,41,41],[42,50,42,51],[48,46,49,47],[38,23,38,24],[60,39,60,41],[61,39,61,41],[61,30,61,38],[61,23,61,24],[60,30,60,38],[60,23,60,24],[71,39,71,41],[70,39,70,41],[64,30,65,53],[61,50,61,51],[60,48,60,49],[60,46,60,47],[60,52,60,53],[61,46,61,47],[60,42,60,45],[62,23,62,24],[61,42,61,45],[37,11,37,14],[44,23,45,24],[37,23,37,24],[44,10,45,10],[44,2,45,9],[39,2,39,24],[40,2,40,24],[60,50,60,51],[60,19,60,22],[46,2,46,9],[41,2,42,24],[47,11,47,14],[48,11,48,14],[49,23,49,24],[48,42,49,45],[47,30,47,53],[48,39,49,41],[47,2,47,9],[44,11,45,14],[37,2,37,9],[38,2,38,9],[44,15,45,16],[46,23,46,24],[37,17,37,18],[62,15,62,16],[66,2,66,24],[70,15,71,16],[72,23,72,24],[70,2,71,9],[73,19,73,22],[70,17,71,22],[72,17,72,18],[63,11,64,14],[63,15,64,16],[63,17,64,18],[63,19,64,22],[65,2,65,24],[72,11,72,14],[70,23,71,24],[63,2,64,9],[63,10,64,10],[70,11,71,14],[62,17,62,18],[62,19,62,22],[46,17,46,18],[126,41,126,46],[121,34,121,40],[121,47,121,50],[122,47,122,50],[125,47,125,50],[123,10,123,12],[126,47,126,50],[124,47,124,50],[122,41,122,46],[121,41,121,46],[124,41,124,46],[122,34,122,40],[123,34,123,40],[124,34,124,40],[125,13,125,15],[126,13,126,15],[122,13,122,15],[123,29,123,33],[123,41,123,46],[123,47,123,50],[126,10,126,12],[126,16,126,19],[121,10,121,12],[130,44,130,50],[141,17,141,21],[142,17,142,21],[127,29,127,33],[127,34,127,40],[128,36,128,40],[128,48,128,50],[127,24,127,28],[127,20,127,23],[127,41,127,46],[127,47,127,50],[127,16,127,19],[139,13,139,16],[139,17,139,21],[140,17,140,21],[138,17,138,21],[136,13,137,16],[141,13,141,16],[127,13,127,15],[134,3,134,21],[141,3,141,7],[138,3,138,7],[140,8,140,10],[141,8,141,10],[116,41,116,46],[118,47,118,50],[118,41,118,46],[114,41,114,46],[118,29,118,33],[116,29,116,33],[117,47,117,50],[113,41,113,46],[125,41,125,46],[114,47,114,50],[113,34,113,40],[117,34,117,40],[117,41,117,46],[119,41,119,46],[120,41,120,46],[119,34,119,40],[116,47,116,50],[113,47,113,50],[115,3,115,50],[123,24,123,28],[121,24,121,28],[122,24,122,28],[118,24,118,28],[119,24,119,28],[120,47,120,50],[119,47,119,50],[121,29,121,33],[122,29,122,33],[119,29,119,33],[125,20,125,23],[124,20,124,23],[124,16,124,19],[118,13,118,15],[120,20,120,23],[118,16,118,19],[119,16,119,19],[120,16,120,19],[118,20,118,23],[119,20,119,23],[123,13,123,15],[122,16,122,19],[121,13,121,15],[121,16,121,19],[123,16,123,19],[123,20,123,23],[124,13,124,15],[125,16,125,19],[119,13,119,15],[120,13,120,15],[116,10,116,12],[117,10,117,12],[112,13,112,15],[102,10,102,12],[102,13,102,15],[105,13,105,15],[62,11,62,14],[92,20,92,23],[91,20,91,23],[104,16,104,19],[101,13,101,15],[102,16,102,19],[119,10,119,12],[111,10,111,12],[111,16,111,19],[113,10,113,12],[114,10,114,12],[95,16,95,19],[96,13,96,15],[97,13,97,15],[98,13,98,15],[113,20,113,23],[101,20,101,23],[88,28,88,40],[87,28,87,40],[97,10,97,12],[92,34,92,40],[98,10,98,12],[92,16,92,19],[93,10,93,12],[86,28,86,40],[91,34,91,40],[98,20,98,23],[97,29,97,33],[96,24,96,28],[95,34,95,40],[93,34,93,40],[98,24,98,28],[93,29,93,33],[94,34,94,40],[98,34,98,40],[97,24,97,28],[96,34,96,40],[96,16,96,19],[95,20,95,23],[86,41,86,42],[82,43,82,46],[83,41,83,42],[82,28,82,40],[92,29,92,33],[95,13,95,15],[91,10,91,12],[89,20,89,33],[91,13,91,15],[93,20,93,23],[91,16,91,19],[93,16,93,19],[92,10,92,12],[94,29,94,33],[92,24,92,28],[95,24,95,28],[94,13,94,15],[94,16,94,19],[94,24,94,28],[94,10,94,12],[93,24,93,28],[94,20,94,23],[91,24,91,28],[95,10,95,12],[87,43,87,46],[88,43,88,46],[88,41,88,42],[68,52,69,53],[92,13,92,15],[70,10,71,10],[79,5,82,11],[77,47,77,50],[82,47,82,50],[79,47,79,50],[78,28,78,40],[79,28,79,40],[76,2,76,24],[73,15,73,16],[87,47,87,50],[92,41,92,46],[80,47,80,50],[84,47,84,50],[83,43,83,46],[82,41,82,42],[79,41,79,42],[87,41,87,42],[81,47,81,50],[86,47,86,50],[68,46,69,47],[73,11,73,14],[73,2,73,9],[78,41,78,42],[83,47,83,50],[85,47,85,50],[70,50,70,51],[71,48,71,49],[78,47,78,50],[68,30,69,38],[68,39,69,41],[73,17,73,18],[78,43,78,46],[79,43,79,46],[81,41,81,42],[77,43,77,46],[80,43,80,46],[84,43,84,46],[85,43,85,46],[75,2,75,24],[72,30,72,53],[77,41,77,42],[28,48,29,51],[28,39,29,41],[61,2,61,9],[61,11,61,14],[31,17,32,22],[19,23,19,24],[22,2,23,9],[31,2,32,9],[21,2,21,9],[22,10,23,10],[22,11,23,14],[31,15,32,16],[21,23,21,24],[24,23,24,24],[21,11,21,14],[21,19,21,22],[21,17,21,18],[26,2,26,24],[33,19,34,22],[58,19,58,22],[56,15,57,16],[36,2,36,9],[33,2,34,9],[33,10,34,10],[19,48,19,49],[20,48,20,49],[21,30,21,53],[18,46,18,47],[19,52,19,53],[20,52,20,53],[18,39,18,41],[18,52,18,53],[20,42,20,45],[18,42,18,45],[28,52,29,53],[32,48,32,49],[32,50,32,51],[19,39,19,41],[31,50,31,51],[20,30,20,38],[20,19,20,22],[22,30,23,53],[30,42,30,45],[28,46,29,47],[20,39,20,41],[20,46,20,47],[19,46,19,47],[30,52,30,53],[29,2,30,24],[24,2,24,9],[26,30,27,53],[24,30,25,53],[19,50,19,51],[20,50,20,51],[30,30,30,38],[31,30,31,38],[19,2,19,9],[19,11,19,14],[58,2,58,9],[59,2,59,9],[60,2,60,9],[59,23,59,24],[166,36,166,50],[166,23,166,34],[166,7,166,21],[49,17,49,18],[48,15,48,16],[49,19,49,22],[58,11,58,14],[49,15,49,16],[49,2,49,9],[48,19,48,22],[48,23,48,24],[63,30,63,53],[63,23,64,24],[88,47,88,50],[84,28,84,40],[54,2,55,24],[62,2,62,9],[72,2,72,9],[56,10,57,10],[50,52,50,53],[50,50,50,51],[58,48,59,51],[54,30,54,53],[57,30,57,53],[50,39,50,41],[51,42,51,45],[60,11,60,14],[56,23,57,24],[56,11,57,14],[58,15,58,16],[58,23,58,24],[38,17,38,18],[48,48,49,51],[48,52,49,53],[43,2,43,24],[36,19,36,22],[38,15,38,16],[38,11,38,14],[44,17,45,22],[58,46,59,47],[55,30,56,53],[50,30,50,38],[50,48,50,49],[58,39,59,41],[58,42,59,45],[51,48,51,49],[50,2,50,24],[51,46,51,47],[56,2,57,9],[59,15,59,16],[59,19,59,22],[58,17,58,18],[59,17,59,18],[53,30,53,53],[50,46,50,47],[38,30,38,53],[38,19,38,22],[36,30,37,53],[32,42,32,45],[31,52,31,53],[41,48,41,49],[39,46,40,47],[39,48,40,51],[35,19,35,22],[31,42,31,45],[37,19,37,22],[41,30,41,38],[39,39,40,41],[39,52,40,53],[39,42,40,45],[31,23,32,24],[41,50,41,51],[32,52,32,53],[31,39,31,41],[32,39,32,41],[32,46,32,47],[41,52,41,53],[36,23,36,24],[0,42,1,42],[0,41,1,41],[8,2,8,53],[17,23,17,24],[18,23,18,24],[17,2,17,9],[17,52,17,53],[17,30,17,38],[12,2,13,24],[18,11,18,14],[17,48,17,51],[17,39,17,41],[17,42,17,45],[18,17,18,18],[7,14,7,42],[14,2,16,24],[18,30,18,38],[17,46,17,47],[18,50,18,51],[18,19,18,22],[18,2,18,9],[108,16,108,19],[108,24,108,28],[108,20,108,23],[108,13,108,15],[108,29,108,33],[108,41,108,46],[108,34,108,40],[36,11,36,14],[33,11,34,14],[48,30,49,38],[47,19,47,22],[47,23,47,24],[46,19,46,22],[44,30,44,53],[42,46,42,47],[48,17,48,18],[33,15,34,16],[56,17,57,22],[42,39,42,41],[42,52,42,53],[41,42,41,45],[41,46,41,47],[46,15,46,16],[47,17,47,18],[36,17,36,18],[35,17,35,18],[52,2,53,24],[46,11,46,14],[51,2,51,24],[30,39,30,41],[49,11,49,14],[17,11,17,14],[24,17,24,18],[17,15,17,16],[18,15,18,16],[17,17,17,22],[19,17,19,18],[22,19,23,22],[27,2,28,24],[22,15,23,16],[20,11,20,14],[19,19,19,22],[36,15,36,16],[37,15,37,16],[33,23,34,24],[21,15,21,16],[20,15,20,16],[32,30,32,38],[35,2,35,9],[24,19,24,22],[31,10,32,10],[25,2,25,24],[19,15,19,16],[20,17,20,18],[20,2,20,9],[20,23,20,24],[22,17,23,18],[22,23,23,24],[35,11,35,14],[31,11,32,14],[24,15,24,16],[24,11,24,14],[35,15,35,16],[35,23,35,24],[33,17,34,18],[152,34,152,43],[152,11,152,18],[147,7,147,12],[152,23,152,30],[152,1,152,10],[150,15,150,22],[147,45,147,50],[152,19,152,20],[136,11,137,12],[147,13,147,14],[147,37,147,43],[141,11,141,12],[139,11,139,12],[143,17,143,21],[145,37,146,43],[142,8,143,16],[146,25,146,33],[147,25,147,33],[146,7,146,11],[149,14,149,23],[147,15,147,22],[137,36,137,45],[138,27,138,34],[138,36,138,44],[173,118,173,121],[58,30,59,38],[59,11,59,14],[138,11,138,12],[93,13,93,15],[110,51,110,53],[111,51,111,53],[114,51,114,53],[158,13,165,50],[140,11,140,12],[138,13,138,16],[72,15,72,16],[72,19,72,22],[81,28,81,40],[80,28,80,40],[77,28,77,40],[80,41,80,42],[81,43,81,46],[70,46,70,47],[62,30,62,53],[152,44,152,50],[150,45,150,50],[148,45,149,50],[111,20,111,23]]}
[null,null,null,null,null,null,null,null,null,null,null,null,null,null,null,null,null,null,null,null,null,null,null,null,null,null,null,null,null,null,null,null,null,null,null,null,null,null,null,null,null,null,null,null,null,null,null,null,null,null,null,null,null,null,null,null,null,null,null,null,null,null,null,null,null,null,null,null,null,null,null,null,null,null,null,null,null,null,null,null,null,null,null,null,null,null,null,null,null,null,null,null,null,null,null,null,null,null,null,null,null,null,null,null,null,null,null,null,null,null,null,null,null,null,null,null,null,null,null,null,null,null,null,null,null,null,null,null,null,null,null,null,null,null,"CALCULATE BASE AMOUNT",{"$f":"IF(EN133>0,EN133,\"\")","v":""},null,null,null,"The Bayer Season PAK is back, offering you the performance of complete insect and disease control you need to manage your golf course. Bayer Season PAK customers automatically receive a minimum 8% rebate on all purchases during the program (Includes October bonus).",null,null,null,null,null,null,"NOW Solutions Purchase",null,"Oct Purchase",null,"Points or Credit"]
[]
[null,null,null,null,null,null,null,null,null,null,null,null,null,null,null,null,null,null,null,null,null,null,null,null,null,null,null,null,null,null,null,null,null,null,null,null,null,null,null,null,null,null,null,null,null,null,null,null,null,null,null,null,null,null,null,null,null,null,null,null,null,null,null,null,null,null,null,null,null,null,null,null,null,null,null,null,null,null,null,null,null,null,null,null,null,null,null,null,null,null,null,null,null,null,null,null,null,null,null,null,null,null,null,null,null,null,null,null,null,null,null,null,null,null,null,null,null,null,null,null,null,null,null,null,null,null,null,null,null,null,null,null,null,null,"ADJUSTED BASE AMOUNT",{"$f":"IF(EL75=3,EF1,IF(SUM(AW90,AK129)>0,SUM(AW90,AK129),\"\"))","v":""},null,null,null,null,null,null,null,null,null,null,{"$f":"IF(EQ4>0,TRUE,FALSE)","v":false},null,false,null,1]
[null,null,null,null,null,null,null,null,null,null,null,null,null,null,null,null,null,null,null,null,null,null,null,null,null,null,null,null,null,null,null,null,null,null,null,null,null,null,null,null,null,null,null,null,null,null,null,null,null,null,null,null,null,null,null,null,null,null,null,null,null,null,null,null,null,null,null,null,null,null,null,null,null,null,null,null,null,null,null,null,null,null,null,null,null,null,null,null,null,null,null,null,null,null,null,null,null,null,null,null,null,null,null,null,null,null,null,null,null,null,null,null,null,null,null,null,null,null,null,null,null,null,null,null,null,null,null,null,null,null,null,null,null,null,null,null,null,null,null,null,null,null,null,null,null,null,{"$f":"IF(OR(AND(EL75=1,DP186=SUM(DP185:DP195)),AND(EL75=4,SUM(DP191,DP186)=SUM(DP185:DP195)),AND(EL75=2,SUM(DP191,DP192,DP185)=SUM(DP185:DP195))),0,SUM(DP185:DP195))","v":0}]
[null,null,null,null,null,null,null,null,null,null,null,null,null,null,null,null,null,null,null,null,null,null,null,null,null,null,null,null,null,null,null,null,null,null,null,null,null,null,null,null,null,null,null,null,null,null,null,null,null,null,null,null,null,null,null,null,null,null,null,null,null,null,null,null,null,null,null,null,null,null,null,null,null,null,null,null,null,null,null,null,null,null,null,null,null,null,null,null,null,null,null,null,null,null,null,null,null,null,null,null,null,null,null,null,null,null,null,null,null,null,null,null,null,null,null,null,null,null,null,null,null,null,null,null,null,null,null,null,null,null,null,null,null,null,"CALCULATE BASE REBATE",{"$f":"IF(TRIM(EF1)<>\"\",IF((EF1)<2500,0,IF(AND((EF1)>=2500,(EF1)<10000),0.02,IF(AND((EF1)>=10000,(EF1)<15000),0.03,IF(AND((EF1)>=15000,(EF1)<25000),0.04,IF(AND((EF1)>=25000,(EF1)<29000),IF(TRIM(AP79)<>\"\",IF((AV79)>=1,0.08,0.05),0.05),IF(AND((EF1)>=29000,(EF1)<40000),0.08,IF((EF1)>=40000,0.09,\"\"))))))),\"\")","v":""},null,null,null,"Bayer Season PAK Note"]
[]
[]
[null,null,null,null,null,null,null,null,null,null,null,null,null,null,null,null,null,null,null,null,null,null,null,null,null,null,null,null,null,null,null,null,null,null,null,null,null,null,null,null,null,null,null,null,null,null,null,null,null,null,null,null,null,null,null,null,null,null,null,null,null,null,null,null,null,null,null,null,null,null,null,null,null,null,null,null,null,null,null,null,null,null,null,null,null,null,null,null,null,null,null,null,null,null,null,null,null,null,null,null,null,null,null,null,null,null,null,null,null,null,null,null,null,null,null,null,null,null,null,null,null,null,null,null,null,null,null,null,null,null,null,null,null,null,"CALCULATE OCTOBER BONUS",{"$f":"IF(OR((ES3)=TRUE,(EQ3)=TRUE),IF(TRIM(AV79)<>\"\",\"\",IF(EF1>=29000,\"\",IF(TRIM(EF1)<>\"\",0.01,\"\"))),\"\")","v":""}]
[]
[null,null,null,null,null,null,null,null,null,null,null,null,null,null,null,null,null,null,null,null,null,null,null,null,null,null,null,null,null,null,null,null,null,null,null,null,null,null,null,null,null,null,null,null,null,null,null,null,null,null,null,null,null,null,null,null,null,null,null,null,null,null,null,null,null,null,null,null,null,null,null,null,null,null,null,null,null,null,null,null,null,null,null,null,null,null,null,null,null,null,null,null,null,null,null,null,null,null,null,null,null,null,null,null,null,null,null,null,null,null,null,null,null,null,null,null,null,null,null,null,null,null,null,null,null,null,null,null,null,null,null,null,null,null,"CALCULATE PAK REBATE",{"$f":"IF(TRIM(AW90)<>\"\",IF(AND((TRIM(AP79)<>\"\"),(AV79)>=1),\"\",IF(EF1>=29000,\"\",0.01)),\"\")","v":""}]
[]
[]
[null,null,{"$f":"CONCATENATE(\"Bayer Season PAK\",IF(EL75=2,\" - NOT AVAIL.\",CONCATENATE(\" - $\",FIXED(AR79,2,FALSE))))","v":"Bayer Season PAK - $29,000.00"},null,null,null,null,null,null,null,null,null,null,null,null,null,null,null,null,null,null,null,null,null,null,null,null,null,null,null,{"$f":"CONCATENATE(\"Warm Season Herbicide PAK\",IF(OR(EL75=1,EL75=4),\" - NOT AVAIL.\",CONCATENATE(\" - $\",FIXED(AR84,2,FALSE))))","v":"Warm Season Herbicide PAK - $5,300.00"},null,null,null,null,null,null,null,null,null,null,null,null,null,null,null,null,null,null,null,null,null,null,null,null,null,null,null,null,null,null,null,null,null,null,null,null,null,null,null,null,null,null,null,null,null,null,null,null,null,null,null,null,null,null,null,null,null,null,null,null,null,null,null,null,null,null,null,null,null,null,null,null,null,null,null,null,null,null,null,null,null,null,null,null,null,null,null,null,null,null,null,null,null,null,null,null,null,null,null,null,null,null,null,null,{"$f":"IF(SUM(EF5:EF10)>=0,SUM(EF5:EF10),\"\")","v":0}]
[]
[null,null,{"$f":"IF(EL75=2,\"THIS PAK IS NOT AVAILABLE FOR CALIFORNIA CUSTOMERS.\",EJ1)","v":"The Bayer Season PAK is back, offering you the performance of complete insect and disease control you need to manage your golf course. Bayer Season PAK customers automatically receive a minimum 8% rebate on all purchases during the program (Includes October bonus)."},null,null,null,null,null,null,null,null,null,null,null,null,null,null,null,null,null,null,null,null,null,null,null,null,null,null,null,{"$f":"IF(EL75=1,\"THIS PAK IS NOT AVAILABLE FOR WASHINGTON CUSTOMERS.\",IF(EL75=4,\"THIS PAK IS NOT AVAILABLE FOR NEW YORK CUSTOMERS.\",\"Provides a great combination of pre- and postemergent herbicide options to control a broad spectrum of difficult to control weeds.\"))","v":"Provides a great combination of pre- and postemergent herbicide options to control a broad spectrum of difficult to control weeds."}]
[]
[]
[null,null,"PRODUCTS",null,null,null,null,null,null,null,"UNITS/\nPAK","UNIT SIZE",null,null,null,"GAL/LB\n/OZ",null,"USE RATE",null,null,null,null,null,"ACRES\nTREATED",null,null,null,null,null,null,"PRODUCTS",null,null,null,null,null,null,null,null,"UNITS/\nPAK",null,null,"UNIT SIZE",null,null,null,"GAL/LB\n/OZ",null,"USE RATE",null,null,null,"ACRES\nTREATED",null,null,null,null,null,null,null,null,null,null,null,null,null,null,null,null,null,null,null,null,null,null,null,null,null,null,null,null,null,null,null,null,null,null,null,null,null,null,null,null,null,null,null,null,null,null,null,null,null,null,null,null,null,null,null,null,null,null,null,null,null,null,null,null,null,null,null,null,null,null,null,null,null,null,null,null,null,null,null,null,null,"TOTAL PROGRAM REBATE %",{"$f":"IF(TRIM(EF1)<>\"\",IF(EN133>=2500,IF(TRIM(EF13)<>\"\",EF13,\"\"),\"\"),\"\")","v":""}]
[null,null,"Banol®",null,null,null,null,null,null,null,2,"  2 x 1.0 gal/case",null,null,null,4,null,2,null,"oz/1,000",null,null,null,{"$f":"IF(TRIM(R19)<>\"\",(P19*128)/(R19*43.56),\"\")","v":5.8769513314967856},null,null,null,null,null,null,"Specticle FLO",null,null,null,null,null,null,null,null,1,null,null,"2 X 1.0 gal/case",null,null,null,2,null,6.5,null,"oz./acre",null,{"$f":"IF(TRIM(AW19)<>\"\",(AU19*128)/AW19,\"\")","v":39.384615384615387},null,null,null,null,null,null,null,null,null,null,null,null,null,null,null,null,null,null,null,null,null,null,null,null,null,null,null,null,null,null,null,null,null,null,null,null,null,null,null,null,null,null,null,null,null,null,null,null,null,null,null,null,null,null,null,null,null,null,null,null,null,null,null,null,null,null,null,null,null,null,null,null,null,null,null,null,null,null,null,null,null,"TOTAL PROGRAM REBATE",{"$f":"IF(TRIM(EF1)=\"\",\"\",IF((EF1)<2500,0,IF(OR(TRIM(EF1)=\"\",TRIM(EF18)=\"\"),\"\",(EF1)*(EF18))))","v":""}]
[null,null,"Bayleton® FLO",null,null,null,null,null,null,null,1,"  2 x 2.5 gal/case",null,null,null,5,null,0.5,null,"oz/1,000",null,null,null,{"$f":"IF(TRIM(R20)<>\"\",(P20*128)/(R20*43.56),\"\")","v":29.38475665748393},null,null,null,null,null,null,"Tribute® Total",null,null,null,null,null,null,null,null,1,null,null,"  6 x 6.0  oz/case",null,null,null,36,null,3,null,"oz./acre",null,{"$f":"IF(TRIM(AW20)<>\"\",(AU20)/AW20,\"\")","v":12},null,null,null,null,null,null,null,null,null,null,null,null,null,null,null,null,null,null,null,null,null,null,null,null,null,null,null,null,null,null,null,null,null,null,null,null,null,null,null,null,null,null,null,null,null,null,null,null,null,null,null,null,null,null,null,null,null,null,null,null,null,null,null,null,null,null,null,null,null,null,null,null,null,null,null,null,null,null,null,"Calculate Select Rebate",null,null,{"$f":"IF(EN133>=2500,IF(TRIM(AW129)<>\"\",AW129,\"\"),\"\")","v":""}]
[null,null,{"$f":"CONCATENATE(IF(EL75=2,\"Chipco® Signature™\",\"Signature™ XTRA Stressgard®\"))","v":"Signature™ XTRA Stressgard®"},null,null,null,null,null,null,null,14,"  4 x 5.5 lbs/case",null,null,null,308,null,4,null,"oz/1,000",null,null,null,{"$f":"IF(TRIM(R21)<>\"\",(P21*16)/(R21*43.56),\"\")","v":28.28282828282828},null,null,null,null,null,null,"Specticle G",null,null,null,null,null,null,null,null,4,null,null,"50 lb/bag",null,null,null,200,null,200,null,"lb /acre",null,1]
[null,null,"Interface® Stressgard",null,null,null,null,null,null,null,9,"  2 x 2.5 gal/case",null,null,null,45,null,4,null,"oz/1,000",null,null,null,{"$f":"IF(TRIM(R22)<>\"\",(P22*128)/(R22*43.56),\"\")","v":33.057851239669418}]
[null,null,"Merit 75® WSP",null,null,null,null,null,null,null,1,"110 X 1.6 oz/drum",null,null,null,11,null,6.4,null,"oz/acre",null,null,null,{"$f":"IF(TRIM(R23)<>\"\",(P23*16)/(R23),\"\")","v":27.5}]
[null,null,null,null,null,null,null,null,null,null,null,null,null,null,null,null,null,null,null,null,null,null,null,{"$f":"IF(TRIM(R24)<>\"\",(P24*16)/(R24*43.56),\"\")","v":""}]
[null,null,"Tartan® Stressgard",null,null,null,null,null,null,null,6,"  2 X 2.5 gal/case",null,null,null,30,null,1.5,null,"oz/1,000",null,null,null,{"$f":"IF(TRIM(R25)<>\"\",(P25*128)/(R25*43.56),\"\")","v":58.76951331496786},null,null,null,null,null,null,{"$f":"CONCATENATE(\"Bayer Stressgard® PAK\",IF(EL75=2,\" - NOT AVAIL.\",CONCATENATE(\" - $\",FIXED(AR85,2,FALSE))))","v":"Bayer Stressgard® PAK - $4,950.00"},null,null,null,null,null,null,null,null,null,null,null,null,null,null,null,null,null,null,null,null,null,null,null,null,null,null,null,null,null,null,null,null,null,null,null,null,null,null,null,null,null,null,null,null,null,null,null,null,null,null,null,null,null,null,null,null,null,null,null,null,null,null,null,null,null,null,null,null,null,null,null,null,null,null,null,null,null,null,null,null,null,null,null,null,null,null,null,null,null,null,null,null,null,null,null,null,null,null,null,null,null,null,null,"Grand Total",{"$f":"IF(AND(TRIM(EF19)=\"\",TRIM(EF20)=\"\"),\"\",SUM(EF19,EF20))","v":""}]
[]
[null,null,null,null,null,null,null,null,null,null,null,null,null,null,null,null,null,null,null,null,null,null,null,null,null,null,null,null,null,null,{"$f":"IF(EL75=2,\"THIS PAK IS NOT AVAILABLE FOR CALIFORNIA CUSTOMERS.\",\"With Stressgard Formulation Technology, this PAK program enhances overall turf quality, improves plant health and protects against harsh environmental stress that can damage your turf.\")","v":"With Stressgard Formulation Technology, this PAK program enhances overall turf quality, improves plant health and protects against harsh environmental stress that can damage your turf."}]
[null,null,{"$f":"CONCATENATE(\"Bayer Essentials PAK\",IF(OR(EL75=2,EL75=4),\" - NOT AVAIL.\",CONCATENATE(\" - $\",FIXED(AR80,2,FALSE))))","v":"Bayer Essentials PAK - $17,500.00"},null,null,null,null,null,null,null,null,null,null,null,null,null,null,null,null,null,null,null,null,null,null,null,null,null,null,null,null,null,null,null,null,null,null,null,null,null,null,null,null,null,null,null,null,null,null,null,null,null,null,null,null,null,null,null,null,null,null,null,null,null,null,null,null,null,null,null,null,null,null,null,null,null,null,null,null,null,null,null,null,null,null,null,null,null,null,null,null,null,null,null,null,null,null,null,null,null,null,null,null,null,null,null,null,null,null,null,null,null,null,null,null,null,null,null,null,null,null,null,null,null,null,null,null,null,null,null,null,null,0,2500,{"$f":"IF(AND($EN$133>EC28,$EN$133<ED28),((ED28)-($EN$133)),\"\")","v":""}]
[null,null,null,null,null,null,null,null,null,null,null,null,null,null,null,null,null,null,null,null,null,null,null,null,null,null,null,null,null,null,"PRODUCTS",null,null,null,null,null,null,null,null,"UNITS/\nPAK",null,null,"UNIT SIZE",null,null,null,"GAL/LB\n/OZ",null,"USE RATE",null,null,null,"ACRES\nTREATED",null,null,null,null,null,null,null,null,null,null,null,null,null,null,null,null,null,null,null,null,null,null,null,null,null,null,null,null,null,null,null,null,null,null,null,null,null,null,null,null,null,null,null,null,null,null,null,null,null,null,null,null,null,null,null,null,null,null,null,null,null,null,null,null,null,null,null,null,null,null,null,null,null,null,null,null,null,null,null,2500,10000,{"$f":"IF(AND($EN$133>=EC29,$EN$133<ED29),((ED29)-($EN$133)),\"\")","v":""}]
[null,null,{"$f":"IF(OR(EL75=2,EL75=4),IF(EL75=4,\"THIS PAK IS NOT AVAILABLE FOR NEW YORK CUSTOMERS.\",\"THIS PAK IS NOT AVAILABLE FOR CALIFORNIA CUSTOMERS.\"),\"The Bayer Essentials PAK is built on key products you know, and trust, with the flexibility you demand.\")","v":"The Bayer Essentials PAK is built on key products you know, and trust, with the flexibility you demand."},null,null,null,null,null,null,null,null,null,null,null,null,null,null,null,null,null,null,null,null,null,null,null,null,null,null,null,null,null,null,null,null,null,null,null,null,null,null,null,null,null,null,null,null,null,null,null,null,null,null,null,null,null,null,null,null,null,null,null,null,null,null,null,null,null,null,null,null,null,null,null,null,null,null,null,null,null,null,null,null,null,null,null,null,null,null,null,null,null,null,null,null,null,null,null,null,null,null,null,null,null,null,null,null,null,null,null,null,null,null,null,null,null,null,null,null,null,null,null,null,null,null,null,null,null,null,null,null,null,10000,15000,{"$f":"IF(AND($EN$133>=EC30,$EN$133<ED30),((ED30)-($EN$133)),\"\")","v":""}]
[null,null,null,null,null,null,null,null,null,null,null,null,null,null,null,null,null,null,null,null,null,null,null,null,null,null,null,null,null,null,{"$f":"IF(FB97=2,\"Chipco Signature\",\"Signature XTRA Stressgard\")","v":"Signature XTRA Stressgard"},null,null,null,null,null,null,null,null,4,null,null,"  4 x 5.5 lbs/case",null,null,null,88,null,4,null,"oz/1,000",null,{"$f":"IF(TRIM(AW31)<>\"\",(AU31*16)/(AW31*43.56),\"\")","v":8.0808080808080796},null,null,null,null,null,null,null,null,null,null,null,null,null,null,null,null,null,null,null,null,null,null,null,null,null,null,null,null,null,null,null,null,null,null,null,null,null,null,null,null,null,null,null,null,null,null,null,null,null,null,null,null,null,null,null,null,null,null,null,null,null,null,null,null,null,null,null,null,null,null,null,null,null,null,null,null,null,null,null,15000,25000,{"$f":"IF(AND($EN$133>=EC31,$EN$133<ED31),((ED31)-($EN$133)),\"\")","v":""}]
[null,null,"PRODUCTS",null,null,null,null,null,null,null,"UNITS/\nPAK","UNIT SIZE",null,null,null,"GAL/LB\n/OZ",null,"USE RATE",null,null,null,null,null,"ACRES\nTREATED",null,null,null,null,null,null,"Interface Stressgard",null,null,null,null,null,null,null,null,1,null,null,"  2 x 2.5 gal/case",null,null,null,5,null,4,null,"oz/1,000",null,{"$f":"IF(TRIM(AW32)<>\"\",(AU32*128)/(AW32*43.56),\"\")","v":3.6730945821854912},null,null,null,null,null,null,null,null,null,null,null,null,null,null,null,null,null,null,null,null,null,null,null,null,null,null,null,null,null,null,null,null,null,null,null,null,null,null,null,null,null,null,null,null,null,null,null,null,null,null,null,null,null,null,null,null,null,null,null,null,null,null,null,null,null,null,null,null,null,null,null,null,null,null,null,null,null,null,null,25000,29000,{"$f":"IF(AND($EN$133>=EC32,$EN$133<ED32),((ED32)-($EN$133)),\"\")","v":""}]
[null,null,null,null,null,null,null,null,null,null,null,null,null,null,null,null,null,null,null,null,null,null,null,null,null,null,null,null,null,null,"Tartan Stressgard",null,null,null,null,null,null,null,null,1,null,null,"  2 X 2.5 gal/case",null,null,null,5,null,2,null,"oz/1,000",null,{"$f":"IF(TRIM(AW33)<>\"\",(AU33*128)/(AW33*43.56),\"\")","v":7.3461891643709825},null,null,null,null,null,null,null,null,null,null,null,null,null,null,null,null,null,null,null,null,null,null,null,null,null,null,null,null,null,null,null,null,null,null,null,null,null,null,null,null,null,null,null,null,null,null,null,null,null,null,null,null,null,null,null,null,null,null,null,null,null,null,null,null,null,null,null,null,null,null,null,null,null,null,null,null,null,null,null,29000,40000,{"$f":"IF(AND($EN$133>=EC33,$EN$133<ED33),((ED33)-($EN$133)),\"\")","v":""}]
[null,null,"Bayleton FLO",null,null,null,null,null,null,null,1,"  2 x 2.5 gal/case",null,null,null,5,null,0.5,null,"oz/1,000",null,null,null,{"$f":"IF(TRIM(R34)<>\"\",(P34*128)/(R34*43.56),\"\")","v":29.38475665748393}]
[]
[null,null,{"$f":"IF(EL75=2,\"Chipco Signature\",\"Signature XTRA Stressgard\")","v":"Signature XTRA Stressgard"},null,null,null,null,null,null,null,8,"  4 x 5.5 lbs/case",null,null,null,176,null,4,null,"oz/1,000",null,null,null,{"$f":"IF(TRIM(R36)<>\"\",(P36*16)/(R36*43.56),\"\")","v":16.161616161616159},null,null,null,null,null,null,null,null,null,null,null,null,null,null,null,null,null,null,null,null,null,null,null,null,null,null,null,null,null,null,null,null,null,null,null,null,null,null,null,null,null,null,null,null,null,null,null,null,null,null,null,null,null,null,null,null,null,null,null,null,null,null,null,null,null,null,null,null,null,null,null,null,null,null,null,null,null,null,null,null,null,null,null,null,null,null,null,null,null,null,null,null,null,null,null,null,null,null,null,null,null,null,null,null,null,null,null,null,null,null,{"$f":"SUM(EE28:EE33)","v":0},{"$f":"IF(EN133>=2500,IF(EF5>=0.08,0.09,IF(EF5>=0.05,0.08,(EF18)+0.01)),\"\")","v":""},{"$f":"TEXT(EF36,\"0%\")","v":""}]
[null,null,"Exteris® Stressgard",null,null,null,null,null,null,null,8,"  2 x 2.5 gal/case",null,null,null,40,null,4,null,"oz/1,000",null,null,null,{"$f":"IF(TRIM(R37)<>\"\",(P37*128)/(R37*43.56),\"\")","v":29.38475665748393},null,null,null,null,null,null,{"$f":"CONCATENATE(\"Bayer Fairy Ring PAK\",IF(EL75=4,\" - NOT AVAIL.\",CONCATENATE(\" - $\",FIXED(AR86,2,FALSE))))","v":"Bayer Fairy Ring PAK - $4,650.00"},null,null,null,null,null,null,null,null,null,null,null,null,null,null,null,null,null,null,null,null,null,null,null,null,null,null,null,null,null,null,null,null,null,null,null,null,null,null,null,null,null,null,null,null,null,null,null,null,null,null,null,null,null,null,null,null,null,null,null,null,null,null,null,null,null,null,null,null,null,null,null,null,null,null,null,null,null,null,null,null,null,null,null,null,null,null,null,null,null,null,null,null,null,null,null,null,null,null,null,null,null,{"$f":"IF(TRIM(EF3<>\"\"),IF(AND(EF3>2499,EF3<29000),CONCATENATE(\"You are only \",TEXT(EE36,\"$#,##0\"),\" from moving up to Rebate Level \",TEXT(EF36,\"0%\"),\".\"),IF(AND(EF3>28999,EF3<40000),CONCATENATE(\"You are only \",TEXT(EE36,\"$#,##0\"),\" from a \",TEXT(EF36,\"0%\"),\" rebate effective thru Sept 30, 2018.\"),IF(AND(EF3>0,EF3<2500),CONCATENATE(\"You are only \",TEXT(EE36,\"$#,##0\"),\" from qualifying for the program. \"),IF(EF3>=40000,\"Congratulations! You have reached the 9% Rebate - effective thru Sept 30, 2018.\",\"\")))),\"\")","v":""}]
[null,null,"Merit 75 WSP",null,null,null,null,null,null,null,1,"110 X 1.6 oz/drum",null,null,null,11,null,6.4,null,"oz/acre",null,null,null,{"$f":"IF(TRIM(R38)<>\"\",(P38*16)/(R38),\"\")","v":27.5},null,null,null,null,null,null,null,null,null,null,null,null,null,null,null,null,null,null,null,null,null,null,null,null,null,null,null,null,null,null,null,null,null,null,null,null,null,null,null,null,null,null,null,null,null,null,null,null,null,null,null,null,null,null,null,null,null,null,null,null,null,null,null,null,null,null,null,null,null,null,null,null,null,null,null,null,null,null,null,null,null,null,null,null,null,null,null,null,null,null,null,null,null,null,null,null,null,null,null,null,null,null,null,null,null,null,null,null,{"$f":"IF(AND(EE36>0,EE36<40000),\"You are only \",\"\")","v":""},{"$f":"IF(AND(EE36>0,EE36<40000),TEXT(EE36,\"$#,##0\"),\"\")","v":""},{"$f":"IF(AND(EE36>0,EE36<40000),\" from moving up to Rebate Level \",\"\")","v":""},null,null,{"$f":"IF(AND(EE36>0,EE36<40000),TEXT(EG36,\"0%\"),\"\")","v":""}]
[null,null,"Tartan Stressgard",null,null,null,null,null,null,null,3,"  2 X 2.5 gal/case",null,null,null,15,null,1.5,null,"oz/1,000",null,null,null,{"$f":"IF(TRIM(R39)<>\"\",(P39*128)/(R39*43.56),\"\")","v":29.38475665748393},null,null,null,null,null,null,{"$f":"IF(EL75=4,\"THIS PAK IS NOT AVAILABLE FOR NEW YORK CUSTOMERS.\",\"Preventative and curative fairy ring management tools.\")","v":"Preventative and curative fairy ring management tools."}]
[null,null,null,null,null,null,null,null,null,null,null,null,null,null,null,null,null,null,null,null,null,null,null,null,null,null,null,null,null,null,"PRODUCTS",null,null,null,null,null,null,null,null,"UNITS/\nPAK",null,null,"UNIT SIZE",null,null,null,"GAL/LB\n/OZ",null,"USE RATE",null,null,null,"ACRES\nTREATED",null,null,null,null,null,null,null,null,null,null,null,null,null,null,null,null,null,null,null,null,null,null,null,null,null,null,null,null,null,null,null,null,null,null,null,null,null,null,null,null,null,null,null,null,null,null,null,null,null,null,null,null,null,null,null,null,null,null,null,null,null,null,null,null,null,null,null,null,null,null,null,null,null,null,null,null,null,null,null,null,null,null,null,null,null,null,null,null,null,null,"Calc SR min with PAK components"]
[null,null,null,null,null,null,null,null,null,null,null,null,null,null,null,null,null,null,null,null,null,null,null,null,null,null,null,null,null,null,null,null,null,null,null,null,null,null,null,null,null,null,null,null,null,null,null,null,null,null,null,null,null,null,null,null,null,null,null,null,null,null,null,null,null,null,null,null,null,null,null,null,null,null,null,null,null,null,null,null,null,null,null,null,null,null,null,null,null,null,null,null,null,null,null,null,null,null,null,null,null,null,null,null,null,null,null,null,null,null,null,null,null,null,null,null,null,null,null,null,null,null,null,null,null,null,null,null,null,null,null,null,null,null,null,null,null,null,null,null,null,null,null,"Single Unit","PAK Unit","Total"]
[null,null,{"$f":"CONCATENATE(\"Bayer Fairway PAK\",IF(OR(EL75=2,EL75=4),\" - NOT AVAIL.\",CONCATENATE(\" - $\",FIXED(AR81,2,FALSE))))","v":"Bayer Fairway PAK - $12,300.00"},null,null,null,null,null,null,null,null,null,null,null,null,null,null,null,null,null,null,null,null,null,null,null,null,null,null,null,"Tartan Stressgard",null,null,null,null,null,null,null,null,1,null,null,"  2 X 2.5 gal/case",null,null,null,5,null,2,null,"oz/1,000",null,{"$f":"IF(TRIM(AW42)<>\"\",(AU42*128)/(AW42*43.56),\"\")","v":7.3461891643709825},null,null,null,null,null,null,null,null,null,null,null,null,null,null,null,null,null,null,null,null,null,null,null,null,null,null,null,null,null,null,null,null,null,null,null,null,null,null,null,null,null,null,null,null,null,null,null,null,null,null,null,null,null,null,null,null,null,null,null,null,null,null,null,null,null,null,null,null,null,null,null,null,null,null,null,null,null,null,null,null,null,null,null,null,null,null,null,null,null,null,{"$f":"N93*5","v":0},{"$f":"(AP79*4)+(AP87*6)+(AP82*4)","v":0},{"$f":"SUM(EN42:EO42)","v":0},"Banol"]
[null,null,null,null,null,null,null,null,null,null,null,null,null,null,null,null,null,null,null,null,null,null,null,null,null,null,null,null,null,null,"Prostar 70 WG",null,null,null,null,null,null,null,null,4,null,null,"4 x 3.0 lb/case ",null,null,null,48,null,2.2000000000000002,null,"oz/1,000",null,{"$f":"IF(TRIM(AW43)<>\"\",(AU43*16)/(AW43*43.56),\"\")","v":8.0140245429501622},null,null,null,null,null,null,null,null,null,null,null,null,null,null,null,null,null,null,null,null,null,null,null,null,null,null,null,null,null,null,null,null,null,null,null,null,null,null,null,null,null,null,null,null,null,null,null,null,null,null,null,null,null,null,null,null,null,null,null,null,null,null,null,null,null,null,null,null,null,null,null,null,null,null,null,null,null,null,null,null,null,null,null,null,null,null,null,"Checking for 1/6 increments"]
[null,null,{"$f":"IF(OR(EL75=2,EL75=4),IF(EL75=4,\"THIS PAK IS NOT AVAILABLE FOR NEW YORK CUSTOMERS.\",\"THIS PAK IS NOT AVAILABLE FOR CALIFORNIA CUSTOMERS.\"),\"Pairs well with Fiata® Stressgard utilizing select product rebate.\")","v":"Pairs well with Fiata® Stressgard utilizing select product rebate."},null,null,null,null,null,null,null,null,null,null,null,null,null,null,null,null,null,null,null,null,null,null,null,null,null,null,null,null,null,null,null,null,null,null,null,null,null,null,null,null,null,null,null,null,null,null,null,null,null,null,null,null,null,null,null,null,null,null,null,null,null,null,null,null,null,null,null,null,null,null,null,null,null,null,null,null,null,null,null,null,null,null,null,null,null,null,null,null,null,null,null,null,null,null,null,null,null,null,null,null,null,null,null,null,null,null,null,null,null,null,null,null,null,null,null,null,null,null,null,null,null,null,null,null,null,null,null,null,null,null,null,null,null,null,null,null,null,null,0.17,{"$f":"IF(TRIM($N$111)<>\"\",IF($N$111-(INT($N$111))=EL44,1,\"\"),\"\")","v":""},{"$f":"N94*5","v":0},{"$f":"(AP79*5)+(AP80*5)+(AP81*5)","v":0},{"$f":"SUM(EN44:EO44)","v":0},"Bayleton FLO"]
[null,null,"PRODUCTS",null,null,null,null,null,null,null,"UNITS/\nPAK","UNIT SIZE",null,null,null,"GAL/LB\n/OZ",null,"USE RATE",null,null,null,null,null,"ACRES\nTREATED",null,null,null,null,null,null,null,null,null,null,null,null,null,null,null,null,null,null,null,null,null,null,null,null,null,null,null,null,null,null,null,null,null,null,null,null,null,null,null,null,null,null,null,null,null,null,null,null,null,null,null,null,null,null,null,null,null,null,null,null,null,null,null,null,null,null,null,null,null,null,null,null,null,null,null,null,null,null,null,null,null,null,null,null,null,null,null,null,null,null,null,null,null,null,null,null,null,null,null,null,null,null,null,null,null,null,null,null,null,null,null,null,null,null,null,null,null,0.33,""]
[null,null,null,null,null,null,null,null,null,null,null,null,null,null,null,null,null,null,null,null,null,null,null,null,null,null,null,null,null,null,{"$f":"CONCATENATE(\"Bayer Pythium PAK\",IF(EL75=2,\" - NOT AVAIL.\",CONCATENATE(\" - $\",FIXED(AR87,2,FALSE))))","v":"Bayer Pythium PAK - $4,450.00"},null,null,null,null,null,null,null,null,null,null,null,null,null,null,null,null,null,null,null,null,null,null,null,null,null,null,null,null,null,null,null,null,null,null,null,null,null,null,null,null,null,null,null,null,null,null,null,null,null,null,null,null,null,null,null,null,null,null,null,null,null,null,null,null,null,null,null,null,null,null,null,null,null,null,null,null,null,null,null,null,null,null,null,null,null,null,null,null,null,null,null,null,null,null,null,null,null,null,null,null,null,null,null,null,null,null,null,null,null,{"$f":"IF(TRIM(EM50)>0,IF((EM50)=1,TRUE,\"\"),\"\")","v":""},0.5,""]
[null,null,"Mirage® Stressgard",null,null,null,null,null,null,null,2,"  2 x 2.5 gal/case",null,null,null,10,null,1,null,"oz/1,000",null,null,null,{"$f":"IF(TRIM(R47)<>\"\",(P47*128)/(R47*43.56),\"\")","v":29.38475665748393},null,null,null,null,null,null,null,null,null,null,null,null,null,null,null,null,null,null,null,null,null,null,null,null,null,null,null,null,null,null,null,null,null,null,null,null,null,null,null,null,null,null,null,null,null,null,null,null,null,null,null,null,null,null,null,null,null,null,null,null,null,null,null,null,null,null,null,null,null,null,null,null,null,null,null,null,null,null,null,null,null,null,null,null,null,null,null,null,null,null,null,null,null,null,null,null,null,null,null,null,null,null,null,null,null,null,null,null,null,null,null,null,null,null,null,null,null,0.67,""]
[null,null,"Interface Stressgard",null,null,null,null,null,null,null,6,"  2 x 2.5 gal/case",null,null,null,30,null,3,null,"oz/1,000",null,null,null,{"$f":"IF(TRIM(R48)<>\"\",(P48*128)/(R48*43.56),\"\")","v":29.38475665748393},null,null,null,null,null,null,{"$f":"IF(EL75=2,\"THIS PAK IS NOT AVAILABLE FOR CALIFORNIA CUSTOMERS.\",\"Preventative and curative pythium management tools.\")","v":"Preventative and curative pythium management tools."},null,null,null,null,null,null,null,null,null,null,null,null,null,null,null,null,null,null,null,null,null,null,null,null,null,null,null,null,null,null,null,null,null,null,null,null,null,null,null,null,null,null,null,null,null,null,null,null,null,null,null,null,null,null,null,null,null,null,null,null,null,null,null,null,null,null,null,null,null,null,null,null,null,null,null,null,null,null,null,null,null,null,null,null,null,null,null,null,null,null,null,null,null,null,null,null,null,null,null,null,null,null,null,null,null,null,null,null,null,null,0.83,"",{"$f":"N98*5","v":0},{"$f":"(AP79*45)+(AP81*30)+(AP85*5)+(AP89*15)+(AP82*10)+(AP88*10)+(DP185*10)+(DP187*15)","v":0},{"$f":"SUM(EN48:EO48)","v":0},"Interface Stressgard"]
[null,null,"Bayleton FLO",null,null,null,null,null,null,null,1,"  2 x 2.5 gal/case",null,null,null,5,null,0.5,null,"oz/1,000",null,null,null,{"$f":"IF(TRIM(R49)<>\"\",(P49*128)/(R49*43.56),\"\")","v":29.38475665748393},null,null,null,null,null,null,"PRODUCTS",null,null,null,null,null,null,null,null,"UNITS/\nPAK",null,null,"UNIT SIZE",null,null,null,"GAL/LB\n/OZ",null,"USE RATE",null,null,null,"ACRES\nTREATED",null,null,null,null,null,null,null,null,null,null,null,null,null,null,null,null,null,null,null,null,null,null,null,null,null,null,null,null,null,null,null,null,null,null,null,null,null,null,null,null,null,null,null,null,null,null,null,null,null,null,null,null,null,null,null,null,null,null,null,null,null,null,null,null,null,null,null,null,null,null,null,null,null,null,null,null,null,null,null,null,null,null,null,null,null,null,null,null,0,"",{"$f":"N99","v":0},{"$f":"(AP79*1)+(AP80*1)","v":0},{"$f":"SUM(EN49:EO49)","v":0},"Merit 75 WSP Mega Mini"]
[null,null,"Exteris® Stressgard",null,null,null,null,null,null,null,8,"  2 x 2.5 gal/case",null,null,null,40,null,4,null,"oz/1,000",null,null,null,{"$f":"IF(TRIM(R50)<>\"\",(P50*128)/(R50*43.56),\"\")","v":29.38475665748393},null,null,null,null,null,null,null,null,null,null,null,null,null,null,null,null,null,null,null,null,null,null,null,null,null,null,null,null,null,null,null,null,null,null,null,null,null,null,null,null,null,null,null,null,null,null,null,null,null,null,null,null,null,null,null,null,null,null,null,null,null,null,null,null,null,null,null,null,null,null,null,null,null,null,null,null,null,null,null,null,null,null,null,null,null,null,null,null,null,null,null,null,null,null,null,null,null,null,null,null,null,null,null,null,null,null,null,null,null,null,null,null,null,null,null,null,null,null,{"$f":"SUM(EM44:EM49)","v":0},{"$f":"(N100*5)+(DP194*5)","v":0},{"$f":"(AP81*10)+(AP82*5)+(AP89*5)+(DP187*5)","v":0},{"$f":"SUM(EN50:EO50)","v":0},"Mirage Stressgard"]
[null,null,null,null,null,null,null,null,null,null,null,null,null,null,null,null,null,null,null,null,null,null,null,null,null,null,null,null,null,null,{"$f":"IF(EL75=2,\"Chipco Signature\",\"Signature XTRA Stressgard\")","v":"Signature XTRA Stressgard"},null,null,null,null,null,null,null,null,4,null,null,"  4 x 5.5 lbs/case",null,null,null,88,null,4,null,"oz/1,000",null,{"$f":"IF(TRIM(AW51)<>\"\",(AU51*16)/(AW51*43.56),\"\")","v":8.0808080808080796},null,null,null,null,null,null,null,null,null,null,null,null,null,null,null,null,null,null,null,null,null,null,null,null,null,null,null,null,null,null,null,null,null,null,null,null,null,null,null,null,null,null,null,null,null,null,null,null,null,null,null,null,null,null,null,null,null,null,null,null,null,null,null,null,null,null,null,null,null,null,null,null,null,null,null,null,null,null,null,null,null,null,null,null,null,null,null,null,0.17,{"$f":"IF(TRIM($N$188)<>\"\",IF($N$188-(INT($N$188))=EL51,1,\"\"),\"\")","v":""}]
[null,null,null,null,null,null,null,null,null,null,null,null,null,null,null,null,null,null,null,null,null,null,null,null,null,null,null,null,null,null,"Banol",null,null,null,null,null,null,null,null,3,null,null,"  2 x 1.0 gal/case",null,null,null,6,null,2,null,"oz/1,000",null,{"$f":"IF(TRIM(AW52)<>\"\",(AU52*128)/(AW52*43.56),\"\")","v":8.8154269972451793},null,null,null,null,null,null,null,null,null,null,null,null,null,null,null,null,null,null,null,null,null,null,null,null,null,null,null,null,null,null,null,null,null,null,null,null,null,null,null,null,null,null,null,null,null,null,null,null,null,null,null,null,null,null,null,null,null,null,null,null,null,null,null,null,null,null,null,null,null,null,null,null,null,null,null,null,null,null,null,null,null,null,null,null,null,null,null,null,0.33,""]
[null,null,{"$f":"CONCATENATE(\"Core Program PAK\",IF(OR(EL75=2,EL75=4),\" - NOT AVAIL.\",CONCATENATE(\" - $\",FIXED(AR82,2,FALSE))))","v":"Core Program PAK - $10,500.00"},null,null,null,null,null,null,null,null,null,null,null,null,null,null,null,null,null,null,null,null,null,null,null,null,null,null,null,null,null,null,null,null,null,null,null,null,null,null,null,null,null,null,null,null,null,null,null,null,null,{"$f":"IF(TRIM(AW53)<>\"\",(AU53*16)/(AW53*43.56),\"\")","v":""},null,null,null,null,null,null,null,null,null,null,null,null,null,null,null,null,null,null,null,null,null,null,null,null,null,null,null,null,null,null,null,null,null,null,null,null,null,null,null,null,null,null,null,null,null,null,null,null,null,null,null,null,null,null,null,null,null,null,null,null,null,null,null,null,null,null,null,null,null,null,null,null,null,null,null,null,null,null,null,null,null,null,null,null,null,null,null,{"$f":"IF(TRIM(EM57)>0,IF((EM57)=1,TRUE,\"\"),\"\")","v":""},0.5,"",{"$f":"(N103*5)+(DP193*5)","v":0},{"$f":"(AP79*30)+(AP80*15)+(AP82*5)+(AP86*5)+(AP85*5)","v":0},{"$f":"SUM(EN53:EO53)","v":0},"Tartan Stressgard"]
[null,null,null,null,null,null,null,null,null,null,null,null,null,null,null,null,null,null,null,null,null,null,null,null,null,null,null,null,null,null,null,null,null,null,null,null,null,null,null,null,null,null,null,null,null,null,null,null,null,null,null,null,null,null,null,null,null,null,null,null,null,null,null,null,null,null,null,null,null,null,null,null,null,null,null,null,null,null,null,null,null,null,null,null,null,null,null,null,null,null,null,null,null,null,null,null,null,null,null,null,null,null,null,null,null,null,null,null,null,null,null,null,null,null,null,null,null,null,null,null,null,null,null,null,null,null,null,null,null,null,null,null,null,null,null,null,null,null,null,null,null,0.67,""]
[null,null,{"$f":"IF(EL75=2,\"THIS PAK IS NOT AVAILABLE FOR CALIFORNIA CUSTOMERS.\",IF(EL75=4,\"THIS PAK IS NOT AVAILABLE FOR NEW YORK CUSTOMERS.\",\"Success starts with our industry-leading solutions.  Use these core program components to achieve perfect turf.\"))","v":"Success starts with our industry-leading solutions.  Use these core program components to achieve perfect turf."},null,null,null,null,null,null,null,null,null,null,null,null,null,null,null,null,null,null,null,null,null,null,null,null,null,null,null,null,null,null,null,null,null,null,null,null,null,null,null,null,null,null,null,null,null,null,null,null,null,null,null,null,null,null,null,null,null,null,null,null,null,null,null,null,null,null,null,null,null,null,null,null,null,null,null,null,null,null,null,null,null,null,null,null,null,null,null,null,null,null,null,null,null,null,null,null,null,null,null,null,null,null,null,null,null,null,null,null,null,null,null,null,null,null,null,null,null,null,null,null,null,null,null,null,null,null,null,null,null,null,null,null,null,null,null,null,null,null,0.83,""]
[null,null,null,null,null,null,null,null,null,null,null,null,null,null,null,null,null,null,null,null,null,null,null,null,null,null,null,null,null,null,{"$f":"CONCATENATE(\"Bayer Leaf Spot PAK\",IF(EL75=2,\" - NOT AVAIL.\",CONCATENATE(\" - $\",FIXED(AR88,2,FALSE))))","v":"Bayer Leaf Spot PAK - $3,650.00"},null,null,null,null,null,null,null,null,null,null,null,null,null,null,null,null,null,null,null,null,null,null,null,null,null,null,null,null,null,null,null,null,null,null,null,null,null,null,null,null,null,null,null,null,null,null,null,null,null,null,null,null,null,null,null,null,null,null,null,null,null,null,null,null,null,null,null,null,null,null,null,null,null,null,null,null,null,null,null,null,null,null,null,null,null,null,null,null,null,null,null,null,null,null,null,null,null,null,null,null,null,null,null,null,null,null,null,null,null,null,0,""]
[null,null,"PRODUCTS",null,null,null,null,null,null,null,"UNITS/\nPAK","UNIT SIZE",null,null,null,"GAL/LB\n/OZ",null,"USE RATE",null,null,null,null,null,"ACRES\nTREATED",null,null,null,null,null,null,null,null,null,null,null,null,null,null,null,null,null,null,null,null,null,null,null,null,null,null,null,null,null,null,null,null,null,null,null,null,null,null,null,null,null,null,null,null,null,null,null,null,null,null,null,null,null,null,null,null,null,null,null,null,null,null,null,null,null,null,null,null,null,null,null,null,null,null,null,null,null,null,null,null,null,null,null,null,null,null,null,null,null,null,null,null,null,null,null,null,null,null,null,null,null,null,null,null,null,null,null,null,null,null,null,null,null,null,null,null,null,null,{"$f":"SUM(EM51:EM56)","v":0}]
[null,null,null,null,null,null,null,null,null,null,null,null,null,null,null,null,null,null,null,null,null,null,null,null,null,null,null,null,null,null,{"$f":"IF(EL75=2,\"THIS PAK IS NOT AVAILABLE FOR CALIFORNIA CUSTOMERS.\",\"Industry-leading solutions for effective leaf spot control.\")","v":"Industry-leading solutions for effective leaf spot control."},null,null,null,null,null,null,null,null,null,null,null,null,null,null,null,null,null,null,null,null,null,null,null,null,null,null,null,null,null,null,null,null,null,null,null,null,null,null,null,null,null,null,null,null,null,null,null,null,null,null,null,null,null,null,null,null,null,null,null,null,null,null,null,null,null,null,null,null,null,null,null,null,null,null,null,null,null,null,null,null,null,null,null,null,null,null,null,null,null,null,null,null,null,null,null,null,null,null,null,null,null,null,null,null,null,null,null,null,null,null,0.17,{"$f":"IF(TRIM($N$124)<>\"\",IF($N$124-(INT($N$124))=EL58,1,\"\"),\"\")","v":""},{"$f":"N108*1","v":0},{"$f":"(AP84*4)+(DP186*4)","v":0},{"$f":"SUM(EN58:EO58)","v":0},"Specticle G"]
[null,null,{"$f":"IF(EL75=2,\"Chipco Signature\",\"Signature XTRA Stressgard\")","v":"Signature XTRA Stressgard"},null,null,null,null,null,null,null,4,"  4 x 5.5 lbs/case",null,null,null,88,null,4,null,"oz/1,000",null,null,null,{"$f":"IF(TRIM(R59)<>\"\",(P59*16)/(R59*43.56),\"\")","v":8.0808080808080796},null,null,null,null,null,null,"PRODUCTS",null,null,null,null,null,null,null,null,"UNITS/\nPAK",null,null,"UNIT SIZE",null,null,null,"GAL/LB\n/OZ",null,"USE RATE",null,null,null,"ACRES\nTREATED",null,null,null,null,null,null,null,null,null,null,null,null,null,null,null,null,null,null,null,null,null,null,null,null,null,null,null,null,null,null,null,null,null,null,null,null,null,null,null,null,null,null,null,null,null,null,null,null,null,null,null,null,null,null,null,null,null,null,null,null,null,null,null,null,null,null,null,null,null,null,null,null,null,null,null,null,null,null,null,null,null,null,null,null,null,null,null,null,0.33,""]
[null,null,"Interface Stressgard",null,null,null,null,null,null,null,2,"  2 x 2.5 gal/case",null,null,null,10,null,4,null,"oz/1,000",null,null,null,{"$f":"IF(TRIM(R60)<>\"\",(P60*128)/(R60*43.56),\"\")","v":7.3461891643709825},null,null,null,null,null,null,null,null,null,null,null,null,null,null,null,null,null,null,null,null,null,null,null,null,null,null,null,null,null,null,null,null,null,null,null,null,null,null,null,null,null,null,null,null,null,null,null,null,null,null,null,null,null,null,null,null,null,null,null,null,null,null,null,null,null,null,null,null,null,null,null,null,null,null,null,null,null,null,null,null,null,null,null,null,null,null,null,null,null,null,null,null,null,null,null,null,null,null,null,null,null,null,null,null,null,null,null,null,null,null,null,null,null,null,null,null,{"$f":"IF(TRIM(EM64)>0,IF((EM64)=1,TRUE,\"\"),\"\")","v":""},0.5,""]
[null,null,"Prostar® 70 WG",null,null,null,null,null,null,null,4,"4 x 3.0 lb/case ",null,null,null,48,null,2.2000000000000002,null,"oz/1,000",null,null,null,{"$f":"IF(TRIM(R61)<>\"\",(P61*16)/(R61*43.56),\"\")","v":8.0140245429501622},null,null,null,null,null,null,"Interface Stressgard",null,null,null,null,null,null,null,null,2,null,null,"  2 x 2.5 gal/case",null,null,null,10,null,4,null,"oz/1,000",null,{"$f":"IF(TRIM(AW61)<>\"\",(AU61*128)/(AW61*43.56),\"\")","v":7.3461891643709825},null,null,null,null,null,null,null,null,null,null,null,null,null,null,null,null,null,null,null,null,null,null,null,null,null,null,null,null,null,null,null,null,null,null,null,null,null,null,null,null,null,null,null,null,null,null,null,null,null,null,null,null,null,null,null,null,null,null,null,null,null,null,null,null,null,null,null,null,null,null,null,null,null,null,null,null,null,null,null,null,null,null,null,null,null,null,null,null,0.67,"",{"$f":"(N106*22)","v":0},{"$f":"(AP79*308)+(AP80*176)+(AP82*88)+(AP83*176)+(AP85*88)+(AP87*88)+(AP88*88)+(DP185*88)","v":0},{"$f":"SUM(EN61:EO61)","v":0},"Signature Xtra"]
[null,null,"Banol",null,null,null,null,null,null,null,2,"  2 x 1.0 gal/case",null,null,null,4,null,2,null,"oz/1,000",null,null,null,{"$f":"IF(TRIM(R62)<>\"\",(P62*128)/(R62*43.56),\"\")","v":5.8769513314967856},null,null,null,null,null,null,{"$f":"IF(FB75=2,\"Chipco Signature\",\"Signature XTRA Stressgard\")","v":"Signature XTRA Stressgard"},null,null,null,null,null,null,null,null,4,null,null,"  4 x 5.5 lbs/case",null,null,null,88,null,4,null,"oz/1,000",null,{"$f":"IF(TRIM(AW62)<>\"\",(AU62*16)/(AW62*43.56),\"\")","v":8.0808080808080796},null,null,null,null,null,null,null,null,null,null,null,null,null,null,null,null,null,null,null,null,null,null,null,null,null,null,null,null,null,null,null,null,null,null,null,null,null,null,null,null,null,null,null,null,null,null,null,null,null,null,null,null,null,null,null,null,null,null,null,null,null,null,null,null,null,null,null,null,null,null,null,null,null,null,null,null,null,null,null,null,null,null,null,null,null,null,null,null,0.83,"",{"$f":"IF(AND(TRIM(N122)<>\"\",TRIM(Q122)<>\"\"),(N122*22)+(N107*44),(N107*44))","v":0},null,{"$f":"SUM(EN62:EO62)","v":0},"Chipco Signature"]
[null,null,"Tartan Stressgard",null,null,null,null,null,null,null,1,"  2 x 2.5 gal/case",null,null,null,5,null,2,null,"oz/1,000",null,null,null,{"$f":"IF(TRIM(R63)<>\"\",(P63*128)/(R63*43.56),\"\")","v":7.3461891643709825},null,null,null,null,null,null,null,null,null,null,null,null,null,null,null,null,null,null,null,null,null,null,null,null,null,null,null,null,null,null,null,null,null,null,null,null,null,null,null,null,null,null,null,null,null,null,null,null,null,null,null,null,null,null,null,null,null,null,null,null,null,null,null,null,null,null,null,null,null,null,null,null,null,null,null,null,null,null,null,null,null,null,null,null,null,null,null,null,null,null,null,null,null,null,null,null,null,null,null,null,null,null,null,null,null,null,null,null,null,null,null,null,null,null,null,null,null,0,""]
[null,null,"Mirage Stressgard",null,null,null,null,null,null,null,1,"  2 x 2.5 gal/case",null,null,null,5,null,1,null,"oz/1,000",null,null,null,{"$f":"IF(TRIM(R64)<>\"\",(P64*128)/(R64*43.56),\"\")","v":14.692378328741965},null,null,null,null,null,null,null,null,null,null,null,null,null,null,null,null,null,null,null,null,null,null,null,null,null,null,null,null,null,null,null,null,null,null,null,null,null,null,null,null,null,null,null,null,null,null,null,null,null,null,null,null,null,null,null,null,null,null,null,null,null,null,null,null,null,null,null,null,null,null,null,null,null,null,null,null,null,null,null,null,null,null,null,null,null,null,null,null,null,null,null,null,null,null,null,null,null,null,null,null,null,null,null,null,null,null,null,null,null,null,null,null,null,null,null,null,null,null,{"$f":"SUM(EM58:EM63)","v":0},{"$f":"N117*5","v":0},{"$f":"AP83*25","v":0},{"$f":"SUM(EN64:EO64)","v":0},"26GT"]
[null,null,null,null,null,null,null,null,null,null,null,null,null,null,null,null,null,null,null,null,null,null,null,null,null,null,null,null,null,null,{"$f":"CONCATENATE(\"Bayer Utility PAK - $\",FIXED(AR89,2,FALSE))","v":"Bayer Utility PAK - $2,475.00"}]
[null,null,null,null,null,null,null,null,null,null,null,null,null,null,null,null,null,null,null,null,null,null,null,null,null,null,null,null,null,null,null,null,null,null,null,null,null,null,null,null,null,null,null,null,null,null,null,null,null,null,null,null,null,null,null,null,null,null,null,null,null,null,null,null,null,null,null,null,null,null,null,null,null,null,null,null,null,null,null,null,null,null,null,null,null,null,null,null,null,null,null,null,null,null,null,null,null,null,null,null,null,null,null,null,null,null,null,null,null,null,null,null,null,null,null,null,null,null,null,null,null,null,null,null,null,null,null,null,null,null,null,null,null,null,null,null,null,null,null,null,null,null,null,{"$f":"N118*10","v":0},{"$f":"N119*4","v":0},{"$f":"SUM(EN66:EO66)","v":0},"Compass"]
[null,null,null,null,null,null,null,null,null,null,null,null,null,null,null,null,null,null,null,null,null,null,null,null,null,null,null,null,null,null,"Versatile uses including proven solution for your snow mold problems as well as Dollar Spot, Brown Patch, Anthracnose, and other diseases while enhancing turf quality.",null,null,null,null,null,null,null,null,null,null,null,null,null,null,null,null,null,null,null,null,null,null,null,null,null,null,null,null,null,null,null,null,null,null,null,null,null,null,null,null,null,null,null,null,null,null,null,null,null,null,null,null,null,null,null,null,null,null,null,null,null,null,null,null,null,null,null,null,null,null,null,null,null,null,null,null,null,null,null,null,null,null,null,null,null,null,null,null,null,null,null,null,null,null,null,null,null,null,null,null,null,null,null,null,null,null,null,null,null,null,null,null,{"$f":"N119*4","v":0},{"$f":"N118*10","v":0},0,"Compass"]
[null,null,{"$f":"CONCATENATE(\"Bayer Greens PAK\",IF(EL75=2,\" - NOT AVAIL.\",CONCATENATE(\" - $\",FIXED(AR83,2,FALSE))))","v":"Bayer Greens PAK - $6,450.00"},null,null,null,null,null,null,null,null,null,null,null,null,null,null,null,null,null,null,null,null,null,null,null,null,null,null,null,null,null,null,null,null,null,null,null,null,null,null,null,null,null,null,null,null,null,null,null,null,null,null,null,null,null,null,null,null,null,null,null,null,null,null,null,null,null,null,null,null,null,null,null,null,null,null,null,null,null,null,null,null,null,null,null,null,null,null,null,null,null,null,null,null,null,null,null,null,null,null,null,null,null,null,null,null,null,null,null,null,null,null,null,null,null,null,null,null,null,null,null,null,null,null,null,null,null,null,null,null,null,null,null,null,null,null,null,null,null,null,null,null,{"$f":"N120*12","v":0},{"$f":"(AP82*48)+(AP86*48)","v":0},{"$f":"SUM(EN68:EO68)","v":0},"ProStar 70 WG"]
[null,null,null,null,null,null,null,null,null,null,null,null,null,null,null,null,null,null,null,null,null,null,null,null,null,null,null,null,null,null,"PRODUCTS",null,null,null,null,null,null,null,null,"UNITS/\nPAK",null,null,"UNIT SIZE",null,null,null,"GAL/LB\n/OZ",null,"USE RATE",null,null,null,"ACRES\nTREATED"]
[null,null,{"$f":"IF(EL75=2,\"THIS PAK IS NOT AVAILABLE FOR CALIFORNIA CUSTOMERS.\",\"The standard for your greens management program, anchored by the products that provide superior turf quality.\")","v":"The standard for your greens management program, anchored by the products that provide superior turf quality."}]
[null,null,"PRODUCTS",null,null,null,null,null,null,null,"UNITS/\nPAK","UNIT SIZE",null,null,null,"GAL/LB\n/OZ",null,"USE RATE",null,null,null,null,null,"ACRES\nTREATED",null,null,null,null,null,null,"Interface Stressgard",null,null,null,null,null,null,null,null,3,null,null,"  2 x 2.5 gal/case",null,null,null,15,null,4,null,"oz/1,000",null,{"$f":"IF(TRIM(AW71)<>\"\",(AU71*128)/(AW71*43.56),\"\")","v":11.019283746556473}]
[null,null,null,null,null,null,null,null,null,null,null,null,null,null,null,null,null,null,null,null,null,null,null,null,null,null,null,null,null,null,"Mirage Stressgard",null,null,null,null,null,null,null,null,1,null,null,"  2 x 2.5 gal/case",null,null,null,5,null,1,null,"oz/1,000",null,{"$f":"IF(TRIM(AW72)<>\"\",(AU72*128)/(AW72*43.56),\"\")","v":14.692378328741965}]
[null,null,{"$f":"IF(EL75=2,\"Chipco Signature\",\"Signature XTRA Stressgard\")","v":"Signature XTRA Stressgard"},null,null,null,null,null,null,null,8,"  4 x 5.5 lbs/case",null,null,null,176,null,4,null,"oz/1,000",null,null,null,{"$f":"IF(TRIM(R73)<>\"\",(P73*16)/(R73*43.56),\"\")","v":16.161616161616159}]
[null,null,"26GT®",null,null,null,null,null,null,null,5,"  2 x 2.5 gal/case",null,null,null,25,null,4,null,"oz/1,000",null,null,null,{"$f":"IF(TRIM(R74)<>\"\",(P74*128)/(R74*43.56),\"\")","v":18.365472910927455},null,null,null,null,null,null,null,null,null,null,null,null,null,null,null,null,null,null,null,null,null,null,null,null,null,null,null,null,null,null,null,null,null,null,null,null,null,null,null,null,null,null,null,null,null,null,null,null,null,null,null,null,null,null,null,null,null,null,null,null,null,null,null,null,null,null,null,null,null,null,null,null,null,null,null,null,null,null,null,null,null,null,null,null,null,null,null,null,null,null,null,null,null,null,null,null,null,null,null,null,null,null,null,null,null,null,null,null,null,null,null,null,null,null,null,null,null,"WA/CA/NY/(N/A)"]
[null,null,null,null,null,null,null,null,null,null,null,null,null,null,null,null,null,null,null,null,null,null,null,null,null,null,null,null,null,null,null,null,null,null,null,null,null,null,null,null,null,null,null,null,null,null,null,null,null,null,null,null,null,null,null,null,null,null,null,null,null,null,null,null,null,null,null,null,null,null,null,null,null,null,null,null,null,null,null,null,null,null,null,null,null,null,null,null,null,null,null,null,null,null,null,null,null,null,null,null,null,null,null,null,null,null,null,null,null,null,null,null,null,null,null,null,null,null,null,null,null,null,null,null,null,null,null,null,null,null,null,null,null,null,null,null,null,null,null,null,null,3]
[]
[null,null,null,null,null,null,null,null,null,null,null,null,null,null,null,null,null,null,null,null,null,null,null,null,null,null,null,null,null,null,null,null,null,null,null,null,null,null,null,null,null,null,null,null,null,null,null,null,null,null,null,null,null,null,null,null,null,null,null,null,null,null,null,null,null,null,null,null,null,null,null,null,null,null,null,null,null,null,null,null,null,null,null,null,null,null,null,null,null,null,null,null,null,null,null,null,null,null,null,null,null,null,null,null,null,null,null,null,null,null,null,null,null,null,null,null,null,null,null,null,null,null,null,null,null,null,null,null,null,null,null,null,null,null,null,null,null,null,null,5150,"Regular","California","Washington","Total Purch"]
[null,null,null,null,null,null,null,null,null,null,null,null,null,null,null,null,null,null,null,null,null,null,null,null,null,null,null,null,"PRODUCTS",null,null,null,null,null,null,null,null,null,null,null,null,"# PAKS",null,"PRICE/PAK",null,null,null,"TOTAL $",null,null,null,null,null,null,null,null,null,null,null,null,null,null,null,null,null,null,null,null,null,null,null,null,null,null,null,null,null,null,null,null,null,null,null,null,null,null,null,null,null,null,null,null,null,null,null,null,null,null,null,null,null,null,null,null,null,null,null,null,null,null,null,null,null,null,null,null,null,null,null,null,null,null,null,null,null,null,null,null,null,null,null,null,null,null,null,null,null,null,null,4500,29000,null,{"$f":"EK78+(EK78*0.007)","v":29203},{"$f":"IF(EL75=2,\"\",IF(TRIM(AV79)<>\"\",AP79*EK78,\"\"))","v":""}]
[null,null,null,null,null,null,null,null,null,null,null,null,null,null,null,null,null,null,null,null,null,null,null,null,null,null,null,null,{"$f":"IF(EL75=2,\"\",\"Bayer Season PAK\")","v":"Bayer Season PAK"},null,null,null,null,null,null,null,null,null,null,null,null,null,null,{"$f":"IF(EL75=2,\"\",IF($EL$75=1,EM78,IF($EL$75=2,EL78,EK78)))","v":29000},null,null,null,{"$f":"IF(EL75=2,\"\",IF(TRIM(AP79)<>\"\",AP79*AR79,\"\"))","v":""},null,null,null,null,null,null,null,null,null,null,null,null,null,null,null,null,null,null,null,null,null,null,null,null,null,null,null,null,null,null,null,null,null,null,null,null,null,null,null,null,null,null,null,null,null,null,null,null,null,null,null,null,null,null,null,null,null,null,null,null,null,null,null,null,null,null,null,null,null,null,null,null,null,null,null,null,null,null,null,null,null,null,null,null,null,null,null,null,null,null,null,4350,17500,null,17622.5,{"$f":"IF(OR(EL75=2,EL75=4),\"\",IF(TRIM(AV80)<>\"\",AP80*EK79,\"\"))","v":""}]
[null,null,null,null,null,null,null,null,null,null,null,null,null,null,null,null,null,null,null,null,null,null,null,null,null,null,null,null,{"$f":"IF(EL75=2,\"\",\"Bayer Essentials PAK\")","v":"Bayer Essentials PAK"},null,null,null,null,null,null,null,null,null,null,null,null,null,null,{"$f":"IF(EL75=2,\"\",IF($EL$75=1,EM79,IF($EL$75=2,EL79,EK79)))","v":17500},null,null,null,{"$f":"IF(OR(EL75=2,EL75=4),\"\",IF(TRIM(AP80)<>\"\",AP80*AR80,\"\"))","v":""},null,null,null,null,null,null,null,null,null,null,null,null,null,null,null,null,null,null,null,null,null,null,null,null,null,null,null,null,null,null,null,null,null,null,null,null,null,null,null,null,null,null,null,null,null,null,null,null,null,null,null,null,null,null,null,null,null,null,null,null,null,null,null,null,null,null,null,null,null,null,null,null,null,null,null,null,null,null,null,null,null,null,null,null,null,null,null,null,null,null,null,3550,12300,null,12386.1,{"$f":"IF(OR(EL75=2,EL75=4),\"\",IF(TRIM(AV81)<>\"\",AP81*EK80,\"\"))","v":""}]
[null,null,null,null,null,null,null,null,null,null,null,null,null,null,null,null,null,null,null,null,null,null,null,null,null,null,null,null,{"$f":"IF(EL75=2,\"\",\"Bayer Fairway PAK\")","v":"Bayer Fairway PAK"},null,null,null,null,null,null,null,null,null,null,null,null,null,null,{"$f":"IF(EL75=2,\"\",IF($EL$75=1,EM80,IF($EL$75=2,EL80,EK80)))","v":12300},null,null,null,{"$f":"IF(OR(EL75=2,EL75=4),\"\",IF(TRIM(AP81)<>\"\",AP81*AR81,\"\"))","v":""},null,null,null,null,null,null,null,null,null,null,null,null,null,null,null,null,null,null,null,null,null,null,null,null,null,null,null,null,null,null,null,null,null,null,null,null,null,null,null,null,null,null,null,null,null,null,null,null,null,null,null,null,null,null,null,null,null,null,null,null,null,null,null,null,null,null,null,null,null,null,null,null,null,null,null,null,null,null,null,null,null,null,null,null,null,null,null,null,null,null,null,null,10500,null,10573.5,{"$f":"IF(OR(EL75=2,EL75=4),\"\",IF(TRIM(AP82)<>\"\",AP82*EK81,\"\"))","v":""}]
[null,null,null,null,null,null,null,null,null,null,null,null,null,null,null,null,null,null,null,null,null,null,null,null,null,null,null,null,{"$f":"IF(OR(EL75=2,EL75=4),\"\",\"Core Program PAK\")","v":"Core Program PAK"},null,null,null,null,null,null,null,null,null,null,null,null,null,null,{"$f":"IF(OR(EL75=2,EL75=4),\"\",IF($EL$75=1,EM81,IF($EL$75=2,EL81,EK81)))","v":10500},null,null,null,{"$f":"IF(OR(EL75=2,EL75=4),\"\",IF(TRIM(AP82)<>\"\",AP82*AR82,\"\"))","v":""},null,null,null,null,null,null,null,null,null,null,null,null,null,null,null,null,null,null,null,null,null,null,null,null,null,null,null,null,null,null,null,null,null,null,null,null,null,null,null,null,null,null,null,null,null,null,null,null,null,null,null,null,null,null,null,null,null,null,null,null,null,null,null,null,null,null,null,null,null,null,null,null,null,null,null,null,null,null,null,null,null,null,null,null,null,null,null,null,null,null,null,null,6450,null,6495.15,{"$f":"IF(EL75=2,\"\",IF(TRIM(AP83)<>\"\",AP83*EK82,\"\"))","v":""}]
[null,null,null,null,null,null,null,null,null,null,null,null,null,null,null,null,null,null,null,null,null,null,null,null,null,null,null,null,{"$f":"IF(EL75=2,\"\",\"Bayer Greens PAK\")","v":"Bayer Greens PAK"},null,null,null,null,null,null,null,null,null,null,null,null,null,null,{"$f":"IF($EL$75=1,EM82,IF($EL$75=2,EL82,EK82))","v":6450},null,null,null,{"$f":"IF(EL75=2,\"\",IF(TRIM(AP83)<>\"\",AP83*AR83,\"\"))","v":""},null,null,null,null,null,null,null,null,null,null,null,null,null,null,null,null,null,null,null,null,null,null,null,null,null,null,null,null,null,null,null,null,null,null,null,null,null,null,null,null,null,null,null,null,null,null,null,null,null,null,null,null,null,null,null,null,null,null,null,null,null,null,null,null,null,null,null,null,null,null,null,null,null,null,null,null,null,null,null,null,null,null,null,null,null,null,null,null,null,null,null,null,5300,{"$f":"EK83+(EK83*0.02175)","v":5415.2749999999996},5337.1,{"$f":"IF(OR(EL75=1,EL75=4),\"\",IF(AND(TRIM(AP84)<>\"\",DP186<>\"\"),DP186*EK83+AP84*EK83,IF(TRIM(AP84)<>\"\",AP84*EK83,IF(TRIM(DP186)<>\"\",DP186*EK83,\"\"))))","v":""}]
[null,null,null,null,null,null,null,null,null,null,null,null,null,null,null,null,null,null,null,null,null,null,null,null,null,null,null,null,{"$f":"IF(OR(EL75=1,EL75=4),\"\",\"Warm Season Herbicide PAK\")","v":"Warm Season Herbicide PAK"},null,null,null,null,null,null,null,null,null,null,null,null,null,null,{"$f":"IF($EL$75=1,EM83,IF($EL$75=2,EL83,EK83))","v":5300},null,null,null,{"$f":"IF(OR(EL75=1,EL75=4),\"\",IF(AND(TRIM(AP84)<>\"\",DP186<>\"\"),DP186*AR84+AP84*AR84,IF(TRIM(AP84)<>\"\",AP84*AR84,IF(TRIM(DP186)<>\"\",DP186*AR84,\"\"))))","v":""},null,null,null," NS Included",null,null,null,null,null,null,null,null,null,null,null,null,null,null,null,null,null,null,null,null,null,null,null,null,null,null,null,null,null,null,null,null,null,null,null,null,null,null,null,null,null,null,null,null,null,null,null,null,null,null,null,null,null,null,null,null,null,null,null,null,null,null,null,null,null,null,null,null,null,null,null,null,null,null,null,null,null,null,null,null,null,null,null,null,null,null,null,null,4950,null,4984.6499999999996,{"$f":"IF(EL75=2,\"\",IF(TRIM(AP85)<>\"\",AP85*EK84,\"\"))","v":""}]
[null,null,null,null,null,null,null,null,null,null,null,null,null,null,null,null,null,null,null,null,null,null,null,null,null,null,null,null,{"$f":"IF(EL75=2,\"\",\"Bayer Stressgard PAK\")","v":"Bayer Stressgard PAK"},null,null,null,null,null,null,null,null,null,null,null,null,null,null,{"$f":"IF($EL$75=1,EM84,IF($EL$75=2,EL84,EK84))","v":4950},null,null,null,{"$f":"IF(EL75=2,\"\",IF(TRIM(AP85)<>\"\",AP85*AR85,\"\"))","v":""},null,null,null,null,null,null,null,null,null,null,null,null,null,null,null,null,null,null,null,null,null,null,null,null,null,null,null,null,null,null,null,null,null,null,null,null,null,null,null,null,null,null,null,null,null,null,null,null,null,null,null,null,null,null,null,null,null,null,null,null,null,null,null,null,null,null,null,null,null,null,null,null,null,null,null,null,null,null,null,null,null,null,null,null,null,null,null,null,null,null,null,null,4650,4751.1374999999998,4682.55,{"$f":"IF(EL75=4,\"\",IF(TRIM(AP86)<>\"\",AP86*EK85,\"\"))","v":""}]
[null,null,null,null,null,null,null,null,null,null,null,null,null,null,null,null,null,null,null,null,null,null,null,null,null,null,null,null,{"$f":"IF(EL75=4,\"\",\"Bayer Fairy Ring PAK\")","v":"Bayer Fairy Ring PAK"},null,null,null,null,null,null,null,null,null,null,null,null,null,null,{"$f":"IF(EL75=4,\"\",IF($EL$75=1,EM85,IF($EL$75=2,EL85,EK85)))","v":4650},null,null,null,{"$f":"IF(EL75=4,\"\",IF(TRIM(AP86)<>\"\",AP86*AR86,\"\"))","v":""},null,null,null,null,null,null,null,null,null,null,null,null,null,null,null,null,null,null,null,null,null,null,null,null,null,null,null,null,null,null,null,null,null,null,null,null,null,null,null,null,null,null,null,null,null,null,null,null,null,null,null,null,null,null,null,null,null,null,null,null,null,null,null,null,null,null,null,null,null,null,null,null,null,null,null,null,null,null,null,null,null,null,null,null,null,null,null,null,null,null,null,null,4450,null,4481.1499999999996,{"$f":"IF(EL75=2,\"\",IF(TRIM(AP87)<>\"\",AP87*EK86,\"\"))","v":""}]
[null,null,null,null,null,null,null,null,null,null,null,null,null,null,null,null,null,null,null,null,null,null,null,null,null,null,null,null,{"$f":"IF(EL75=2,\"\",\"Bayer Pythium PAK\")","v":"Bayer Pythium PAK"},null,null,null,null,null,null,null,null,null,null,null,null,null,null,{"$f":"IF($EL$75=1,EM86,IF($EL$75=2,EL86,EK86))","v":4450},null,null,null,{"$f":"IF(EL75=2,\"\",IF(TRIM(AP87)<>\"\",AP87*AR87,\"\"))","v":""},null,null,null,null,null,null,null,null,null,null,null,null,null,null,null,null,null,null,null,null,null,null,null,null,null,null,null,null,null,null,null,null,null,null,null,null,null,null,null,null,null,null,null,null,null,null,null,null,null,null,null,null,null,null,null,null,null,null,null,null,null,null,null,null,null,null,null,null,null,null,null,null,null,null,null,null,null,null,null,null,null,null,null,null,null,null,null,null,null,null,null,null,3650,null,3675.55,{"$f":"IF(EL75=2,\"\",IF(AND(TRIM(AP88)<>\"\",DP185<>\"\"),DP185*EK87+AP88*EK87,IF(TRIM(AP88)<>\"\",AP88*EK87,IF(TRIM(DP185)<>\"\",DP185*EK87,\"\"))))","v":""}]
[null,null,null,null,null,null,null,null,null,null,null,null,null,null,null,null,null,null,null,null,null,null,null,null,null,null,null,null,{"$f":"IF(EL75=2,\"\",\"Bayer Leaf Spot PAK\")","v":"Bayer Leaf Spot PAK"},null,null,null,null,null,null,null,null,null,null,null,null,null,null,{"$f":"IF($EL$75=1,EM87,IF($EL$75=2,EL87,EK87))","v":3650},null,null,null,{"$f":"IF(EL75=2,\"\",IF(AND(TRIM(AP88)<>\"\",DP185<>\"\"),DP185*AR88+AP88*AR88,IF(TRIM(AP88)<>\"\",AP88*AR88,IF(TRIM(DP185)<>\"\",DP185*AR88,\"\"))))","v":""},null,null,null," NS Included",null,null,null,null,null,null,null,null,null,null,null,null,null,null,null,null,null,null,null,null,null,null,null,null,null,null,null,null,null,null,null,null,null,null,null,null,null,null,null,null,null,null,null,null,null,null,null,null,null,null,null,null,null,null,null,null,null,null,null,null,null,null,null,null,null,null,null,null,null,null,null,null,null,null,null,null,null,null,null,null,null,null,null,null,null,null,null,null,2475,{"$f":"EK88+(EK88*0.02175)","v":2528.8312500000002},2492.3249999999998,{"$f":"IF(AND(TRIM(AP89)<>\"\",DP187<>\"\"),DP187*EK88+AP89*EK88,IF(TRIM(AP89)<>\"\",AP89*EK88,IF(TRIM(DP187)<>\"\",DP187*EK88,\"\")))","v":""}]
[null,null,null,null,null,null,null,null,null,null,null,null,null,null,null,null,null,null,null,null,null,null,null,null,null,null,null,null,"Bayer Utility PAK",null,null,null,null,null,null,null,null,null,null,null,null,null,null,{"$f":"IF($EL$75=1,EM88,IF($EL$75=2,EL88,EK88))","v":2475},null,null,null,{"$f":"IF(AND(TRIM(AP89)<>\"\",DP187<>\"\"),DP187*AR89+AP89*AR89,IF(TRIM(AP89)<>\"\",AP89*AR89,IF(TRIM(DP187)<>\"\",DP187*AR89,\"\")))","v":""},null,null,null," NS Included",null,null,null,null,null,null,null,null,null,null,null,null,null,null,null,null,null,null,null,null,null,null,null,null,null,null,null,null,null,null,null,null,null,null,null,null,null,null,null,null,null,null,null,null,null,null,null,null,null,null,null,null,null,null,null,null,null,null,null,null,null,null,null,null,null,null,null,null,null,null,null,null,null,null,null,null,null,null,null,null,null,null,null,null,null,null,null,null,null,null,null,{"$f":"SUM(EN78:EN88)","v":0}]
[null,null,null,null,null,null,null,null,null,null,null,null,null,null,null,null,null,null,null,null,null,null,null,null,null,null,null,null,null,null,null,null,null,null,null,null,null,null,null,null,null,null,null,null,null,null,null,"(A)",{"$f":"IF(SUM(AV79:AY89)>0,SUM(AV79:AY89),\"\")","v":""}]
[null,null,null,null,null,null,null,null,null,null,null,null,null,null,null,null,null,null,null,null,null,null,null,null,null,null,null,null,null,null,null,null,null,null,null,null,null,null,null,null,null,null,null,null,null,null,null,null,null,null,null,null,null,null,null,null,null,null,null,null,null,null,null,null,null,null,null,null,null,null,null,null,null,null,null,null,null,null,null,null,null,null,null,null,null,null,null,null,null,null,null,null,null,null,null,null,null,null,null,null,null,null,null,null,null,null,null,null,null,null,null,null,null,null,null,null,null,null,null,null,null,null,null,null,null,null,null,null,null,null,null,null,null,null,null,null,null,null,null,null,"Regular","California","Washington","Total Purch"]
[null,null,null,"AGENCY PRODUCTS*",null,null,null,null,null,null,"UNIT SIZE",null,null,"# UNITS",null,null,"PRICE/UNIT",null,null,null," USE RATE\n/ 1,000 ft2",null,null,null,"USE RATE\n/ ACRE",null,null,null,null,"ACRES TREATED\n/ UNIT",null,null,null,null,"TOTAL $",null,null,null,null,null,null,"SELECT REBATE/\nMINIMUM QTYǂ",null,null,null,null,null,"SELECT\nREBATE $",null,null,null,null,null,null,null,null,null,null,null,null,null,null,null,null,null,null,null,null,null,null,null,null,null,null,null,null,null,null,null,null,null,null,null,null,null,null,null,null,null,null,null,null,null,null,null,null,null,null,null,null,null,null,null,null,null,null,null,null,null,null,null,null,null,null,null,null,null,null,null,null,null,null,null,null,null,null,null,null,null,null,null,null,null,null,null,null,null,null,null,null,1912.5,{"$f":"EK92 + (EK92*0.02175)","v":1954.096875},{"$f":"EK92 + (EK92*0.007)","v":1925.8875},{"$f":"IF(TRIM(N93)<>\"\",N93*EK92,\"\")","v":""}]
[null,null,null,"Banol",null,null,null,null,null,null,"  2 X 2.5 gal/case",null,null,null,null,null,{"$f":"IF($EL$75=1,EM92,IF($EL$75=2,EL92,EK92))","v":1912.5},null,null,null,2,null,null,null,{"$f":"IF(TRIM(U93)<>\"\",U93*43.56,\"\")","v":87.12},null,null,null,null,{"$f":"IF(TRIM(Y93)<>\"\",IF(TRIM(N93)<>\"\",(N93*(5*128))/Y93,(5*128)/Y93),\"\")","v":7.3461891643709825},null,null,null,null,{"$f":"IF(TRIM(N93)<>\"\",N93*Q93,\"\")","v":""},null,null,null,null,null,null," $60/gal – 10 gal",null,null,null,null,null,{"$f":"IF(TRIM(N93)<>\"\",IF(VALUE(EP42)>=10,((N93)/0.2)*60,\"\"),\"\")","v":""},null,null,null,null,null,null,null,null,null,null,null,null,null,null,null,null,null,null,null,null,null,null,null,null,null,null,null,null,null,null,null,null,null,null,null,null,null,null,null,null,null,null,null,null,null,null,null,null,null,null,null,null,null,null,null,null,null,null,null,null,null,null,null,null,null,null,null,null,null,null,null,null,null,null,null,null,null,null,null,null,null,null,null,null,null,null,null,null,null,null,null,null,2700,{"$f":"EK93 + (EK93*0.02175)","v":2758.7249999999999},{"$f":"EK93 + (EK93*0.007)","v":2718.9},{"$f":"IF(TRIM(N94)<>\"\",N94*EK93,\"\")","v":""}]
[null,null,null,"Bayleton FLO",null,null,null,null,null,null,"2 X 2.5 gal/case",null,null,null,null,null,{"$f":"IF($EL$75=1,EM93,IF($EL$75=2,EL93,EK93))","v":2700},null,null,null,0.5,null,null,null,{"$f":"IF(TRIM(U94)<>\"\",U94*43.56,\"\")","v":21.78},null,null,null,null,{"$f":"IF(EL75=2,\"\",IF(TRIM(Y94)<>\"\",IF(TRIM(N94)<>\"\",(N94*(5*128))/Y94,(5*128)/Y94),\"\"))","v":29.38475665748393},null,null,null,null,{"$f":"IF(TRIM(N94)<>\"\",N94*Q94,\"\")","v":""},null,null,null,null,null,null,{"$f":"IF(EL75=2,\"\",\"$70/gal – 10 gal\")","v":"$70/gal – 10 gal"},null,null,null,null,null,{"$f":"IF(TRIM(N94)<>\"\",IF(VALUE(EP44)>=10,((N94)/0.2)*70,\"\"),\"\")","v":""},null,null,null,null,null,null,null,null,null,null,null,null,null,null,null,null,null,null,null,null,null,null,null,null,null,null,null,null,null,null,null,null,null,null,null,null,null,null,null,null,null,null,null,null,null,null,null,null,null,null,null,null,null,null,null,null,null,null,null,null,null,null,null,null,null,null,null,null,null,null,null,null,null,null,null,null,null,null,null,null,null,null,null,null,null,null,null,null,null,null,null,null,784.96,802.03288000000009,790.45472000000007,{"$f":"IF(OR(EL75=1,EL75=4),\"\",IF(TRIM(N95)<>\"\",N95*EK94,\"\"))","v":""}]
[null,null,null,{"$f":"IF(OR(EL75=1,EL75=4),\"\",\"Celsius® WG\")","v":"Celsius® WG"},null,null,null,null,null,null,{"$f":"IF(OR(EL75=1,EL75=4),\"\",\"8 X 10 oz/case\")","v":"8 X 10 oz/case"},null,null,null,null,null,{"$f":"IF(OR(EL75=1,EL75=4),\"\",IF($EL$75=1,EM94,IF($EL$75=2,EL94,EK94)))","v":784.96},null,null,null,8.5000000000000006E-2,null,null,null,{"$f":"IF(OR(EL75=1,EL75=4),\"\",IF(TRIM(U95)<>\"\",U95*43.56,\"\"))","v":3.7026000000000003},null,null,null,null,{"$f":"IF(OR(EL75=1,EL75=4),\"\",IF(TRIM(Y95)<>\"\",IF(TRIM(N95)<>\"\",(N95*(8*10))/Y95,(8*10)/Y95),\"\"))","v":21.606438718738183},null,null,null,null,{"$f":"IF(OR(EL75=1,EL75=4),\"\",IF(TRIM(N95)<>\"\",N95*Q95,\"\"))","v":""},null,null,null,null,null,null,{"$f":"IF(OR(EL75=1,EL75=4),\"\",\" $15/case – 2 case\")","v":" $15/case – 2 case"},null,null,null,null,null,{"$f":"IF(OR(EL75=1,EL75=4),\"\",IF(TRIM(N95)<>\"\",IF(VALUE(N95)>=2,((N95)/0.125)*1.875,\"\"),\"\"))","v":""},null,null,null,null,null,null,null,null,null,null,null,null,null,null,null,null,null,null,null,null,null,null,null,null,null,null,null,null,null,null,null,null,null,null,null,null,null,null,null,null,null,null,null,null,null,null,null,null,null,null,null,null,null,null,null,null,null,null,null,null,null,null,null,null,null,null,null,null,null,null,null,null,null,null,null,null,null,null,null,null,null,null,null,null,null,null,null,null,null,null,null,null,220,224.785,221.54,{"$f":"IF(OR(EL75=1,EL75=2,EL75=4),\"\",IF(TRIM(N96)<>\"\",N96*EK95,\"\"))","v":""}]
[null,null,null,{"$f":"IF(OR(EL75=1,EL75=2,EL75=4),\"\",\"Chipco Choice\")","v":"Chipco Choice"},null,null,null,null,null,null,{"$f":"IF(OR(EL75=1,EL75=2,EL75=4),\"\",\"1Yr Agreement/acre\")","v":"1Yr Agreement/acre"},null,null,null,null,null,{"$f":"IF(OR(EL75=1,EL75=2,EL75=4),\"\",EK95)","v":220},null,null,null,null,null,null,null,null,null,null,null,null,null,null,null,null,null,{"$f":"IF(OR(EL75=1,EL75=2,EL75=4),\"\",IF(TRIM(N96)<>\"\",N96*Q96,\"\"))","v":""},null,null,null,null,null,null,{"$f":"IF(OR(EL75=1,EL75=2,EL75=4),\"\",\"$10/acre – 45 acre\")","v":"$10/acre – 45 acre"},null,null,null,null,null,{"$f":"IF(OR(EL75=1,EL75=2,EL75=4),\"\",IF(TRIM(N96)<>\"\",IF(VALUE(N96)>=45,(N96)*10,\"\"),\"\"))","v":""},null,null,null,null,null,null,null,null,null,null,null,null,null,null,null,null,null,null,null,null,null,null,null,null,null,null,null,null,null,null,null,null,null,null,null,null,null,null,null,null,null,null,null,null,null,null,null,null,null,null,null,null,null,null,null,null,null,null,null,null,null,null,null,null,null,null,null,null,null,null,null,null,null,null,null,null,null,null,null,null,null,null,null,null,null,null,null,null,null,null,null,null,255,260.54624999999999,256.78500000000003,{"$f":"IF(TRIM(N97)<>\"\",N97*EK96,\"\")","v":""}]
[null,null,null,"Fiata®Stressgard",null,null,null,null,null,null,"  2 X 2.5 gal/case",null,null,null,null,null,{"$f":"IF($EL$75=1,EM96,IF($EL$75=2,EL96,EK96))","v":255},null,null,null,5,null,null,null,{"$f":"IF(TRIM(U97)<>\"\",U97*43.56,\"\")","v":217.8},null,null,null,null,{"$f":"IF(TRIM(Y97)<>\"\",IF(TRIM(N97)<>\"\",(N97*(5*128))/Y97,(5*128)/Y97),\"\")","v":2.9384756657483928},null,null,null,null,{"$f":"IF(TRIM(N97)<>\"\",N97*Q97,\"\")","v":""},null,null,null,null,null,null," $10/gal – 100 gal",null,null,null,null,null,{"$f":"IF(TRIM(N97)<>\"\",IF(VALUE(N97)>=20,((N97)/0.2)*10,\"\"),\"\")","v":""},null,null,null,null,null,null,null,null,null,null,null,null,null,null,null,null,null,null,null,null,null,null,null,null,null,null,null,null,null,null,null,null,null,null,null,null,null,null,null,null,null,null,null,null,null,null,null,null,null,null,null,null,null,null,null,null,null,null,null,null,null,null,null,null,null,null,null,null,null,null,null,null,null,null,null,null,null,null,null,null,null,null,null,null,null,null,null,null,null,null,null,null,772.5,789.301875,777.90750000000003,{"$f":"IF(TRIM(N98)<>\"\",N98*EK97,\"\")","v":""}]
[null,null,null,"Interface Stressgard",null,null,null,null,null,null,"  2 X 2.5 gal/case",null,null,null,null,null,772.5,null,null,null,4,null,null,null,174.24,null,null,null,null,{"$f":"IF(TRIM(Y98)<>\"\",IF(TRIM(N98)<>\"\",(N98*(5*128))/Y98,(5*128)/Y98),\"\")","v":3.6730945821854912},null,null,null,null,"",null,null,null,null,null,null," $15/gal – 40 gal",null,null,null,null,null,{"$f":"IF(TRIM(N98)<>\"\",IF(VALUE(EP48)>=40,((N98)/0.2)*15,\"\"),\"\")","v":""},null,null,null,null,null,null,null,null,null,null,null,null,null,null,null,null,null,null,null,null,null,null,null,null,null,null,null,null,null,null,null,null,null,null,null,null,null,null,null,null,null,null,null,null,null,null,null,null,null,null,null,null,null,null,null,null,null,null,null,null,null,null,null,null,null,null,null,null,null,null,null,null,null,null,null,null,null,null,null,null,null,null,null,null,null,null,null,null,null,null,null,null,1250,1277.1875,1258.75,{"$f":"IF(TRIM(N99)<>\"\",N99*EK98,\"\")","v":""}]
[null,null,null,"Merit 75 WSP Mega Mini",null,null,null,null,null,null,"110 X 1.6 oz/drum",null,null,null,null,null,1250,null,null,null,0.19700000000000001,null,null,null,8.5813200000000016,null,null,null,null,{"$f":"IF(TRIM(Y99)<>\"\",IF(TRIM(N99)<>\"\",(N99*(110*1.6))/Y99,(110*1.6)/Y99),\"\")","v":20.509665179715938},null,null,null,null,"",null,null,null,null,null,null,"$200/drum – 2 drum",null,null,null,null,null,{"$f":"IF(TRIM(N99)<>\"\",IF(VALUE(EP49)>=2,(N99)*200,\"\"),\"\")","v":""},null,null,null,null,null,null,null,null,null,null,null,null,null,null,null,null,null,null,null,null,null,null,null,null,null,null,null,null,null,null,null,null,null,null,null,null,null,null,null,null,null,null,null,null,null,null,null,null,null,null,null,null,null,null,null,null,null,null,null,null,null,null,null,null,null,null,null,null,null,null,null,null,null,null,null,null,null,null,null,null,null,null,null,null,null,null,null,null,null,null,null,null,892.5,911.91187500000001,898.74749999999995,{"$f":"IF(AND(DP194<>\"\",TRIM(N100)<>\"\"),(DP194+N100)*EK99,IF(TRIM(N100)<>\"\",N100*EK99,IF(TRIM(DP194)<>\"\",DP194*EK99,\"\")))","v":""}]
[null,null,null,"Mirage Stressgard",null,null,null,null,null,null,"  2 X 2.5 gal/case",null,null,null,null,null,892.5,null,null,null,1,null,null,null,43.56,null,null,null,null,{"$f":"IF(TRIM(Y100)<>\"\",IF(TRIM(N100)<>\"\",(N100*(5*128))/Y100,(5*128)/Y100),\"\")","v":14.692378328741965},null,null,null,null,{"$f":"IF(AND(TRIM(N100)<>\"\",DP194<>\"\"),DP194*Q100+N100*Q100,IF(TRIM(N100)<>\"\",N100*Q100,IF(TRIM(DP194)<>\"\",DP194*Q100,\"\")))","v":""},null,null,null,null,null,null," $15/gal – 20 gal",null,null,null,null,null,{"$f":"IF(OR(TRIM(N100)<>\"\",TRIM(DP194)<>\"\"),IF(VALUE(EP50)>=20,(EN50)*15,\"\"),\"\")","v":""},null,null,null," NS Included"]
[null,null,null,null,null,null,null,null,null,null,null,null,null,null,null,null,null,null,null,null,null,null,null,null,null,null,null,null,null,null,null,null,null,null,null,null,null,null,null,null,null,null,null,null,null,null,null,null,null,null,null,null,null,null,null,null,null,null,null,null,null,null,null,null,null,null,null,null,null,null,null,null,null,null,null,null,null,null,null,null,null,null,null,null,null,null,null,null,null,null,null,null,null,null,null,null,null,null,null,null,null,null,null,null,null,null,null,null,null,null,null,null,null,null,null,null,null,null,null,null,null,null,null,null,null,null,null,null,null,null,null,null,null,null,null,null,null,null,null,null,825,{"$f":"EK101 + (EK101*0.02175)","v":842.94375000000002},{"$f":"EK101 + (EK101*0.007)","v":830.77499999999998},{"$f":"IF(OR(EL75=1,EL75=4),\"\",IF(TRIM(N102)<>\"\",N102*EK101,\"\"))","v":""}]
[null,null,null,{"$f":"IF(OR(EL75=1,EL75=4),\"\",\"Ronstar® FLO\")","v":"Ronstar® FLO"},null,null,null,null,null,null,{"$f":"IF(OR(EL75=1,EL75=4),\"\",\"  2 X 2.5 gal/case\")","v":"  2 X 2.5 gal/case"},null,null,null,null,null,{"$f":"IF($EL$75=1,EM101,IF($EL$75=2,EL101,EK101))","v":825},null,null,null,2,null,null,null,{"$f":"IF(OR(EL75=1,EL75=4),\"\",IF(TRIM(U102)<>\"\",U102*43.56,\"\"))","v":87.12},null,null,null,null,{"$f":"IF(OR(EL75=1,EL75=4),\"\",IF(TRIM(Y102)<>\"\",IF(TRIM(N102)<>\"\",(N102*(5*128))/Y102,(5*128)/Y102),\"\"))","v":7.3461891643709825},null,null,null,null,{"$f":"IF(OR(EL75=1,EL75=4),\"\",IF(TRIM(N102)<>\"\",N102*Q102,\"\"))","v":""},null,null,null,null,null,null,{"$f":"IF(OR(EL75=1,EL75=4),\"\",\"$25/gal – 30 gal\")","v":"$25/gal – 30 gal"},null,null,null,null,null,{"$f":"IF(OR(EL75=1,EL75=4),\"\",IF(TRIM(N102)<>\"\",IF(VALUE(N102)>=6,((N102)/0.2)*25,\"\"),\"\"))","v":""},null,null,null,null,null,null,null,null,null,null,null,null,null,null,null,null,null,null,null,null,null,null,null,null,null,null,null,null,null,null,null,null,null,null,null,null,null,null,null,null,null,null,null,null,null,null,null,null,null,null,null,null,null,null,null,null,null,null,null,null,null,null,null,null,null,null,null,null,null,null,null,null,null,null,null,null,null,null,null,null,null,null,null,null,null,null,null,null,null,null,null,null,1980,2023.0650000000001,1993.86,{"$f":"IF(AND(DP193<>\"\",TRIM(N103)<>\"\"),(DP193+N103)*EK102,IF(TRIM(N103)<>\"\",N103*EK102,IF(TRIM(DP193)<>\"\",DP193*EK102,\"\")))","v":""}]
[null,null,null,"Tartan Stressgard",null,null,null,null,null,null,"  2 X 2.5 gal/case",null,null,null,null,null,{"$f":"IF($EL$75=1,EM102,IF($EL$75=2,EL102,EK102))","v":1980},null,null,null,2,null,null,null,87.12,null,null,null,null,{"$f":"IF(TRIM(Y103)<>\"\",IF(TRIM(N103)<>\"\",(N103*(5*128))/Y103,(5*128)/Y103),\"\")","v":7.3461891643709825},null,null,null,null,{"$f":"IF(AND(TRIM(N103)<>\"\",DP193<>\"\"),DP193*Q103+N103*Q103,IF(TRIM(N103)<>\"\",N103*Q103,IF(TRIM(DP193)<>\"\",DP193*Q103,\"\")))","v":""},null,null,null,null,null,null,"$50/gal – 20 gal",null,null,null,null,null,{"$f":"IF(OR(TRIM(N103)<>\"\",TRIM(DP193)<>\"\"),IF(VALUE(EP53)>=20,(EN53)*50,\"\"),\"\")","v":""},null,null,null," NS Included",null,null,null,null,null,null,null,null,null,null,null,null,null,null,null,null,null,null,null,null,null,null,null,null,null,null,null,null,null,null,null,null,null,null,null,null,null,null,null,null,null,null,null,null,null,null,null,null,null,null,null,null,null,null,null,null,null,null,null,null,null,null,null,null,null,null,null,null,null,null,null,null,null,null,null,null,null,null,null,null,null,null,null,null,null,null,null,null,125,127.49999999999999,0,{"$f":"IF(OR(EL75=1,EL75=4),\"\",IF(TRIM(N104)<>\"\",N104*EK103,\"\"))","v":""}]
[null,null,null,{"$f":"IF(OR(EL75=1,EL75=4),\"\",\"TopChoice® (20+ bags)\")","v":"TopChoice® (20+ bags)"},null,null,null,null,null,{"$f":"IF(EL75<>2,\"\",\"***\")","v":""},{"$f":"IF(OR(EL75=1,EL75=4),\"\",\"50 lb/bag\")","v":"50 lb/bag"},null,null,null,null,null,{"$f":"IF(OR(EL75=1,EL75=4),\"\",IF($EL$75=1,EM103,IF($EL$75=2,EL103,EK103)))","v":125},null,null,null,2,null,null,null,{"$f":"IF(OR(EL75=1,EL75=4),\"\",IF(TRIM(U104)<>\"\",U104*43.56,\"\"))","v":87.12},null,null,null,null,{"$f":"IF(OR(EL75=1,EL75=4),\"\",IF(TRIM(Y104)<>\"\",IF(TRIM(N104)<>\"\",(N104*(50))/Y104,(50)/Y104),\"\"))","v":0.57392102846648296},null,null,null,null,{"$f":"IF(OR(EL75=1,EL75=4),\"\",IF(EL75=1,\"\",IF(TRIM(N104)<>\"\",N104*Q104,\"\")))","v":""},null,null,null,null,null,null,{"$f":"IF(OR(EL75=1,EL75=4),\"\",\"$20/bag – 20 bag\")","v":"$20/bag – 20 bag"},null,null,null,null,null,{"$f":"IF(OR(EL75=1,EL75=4),\"\",IF(TRIM(N104)<>\"\",IF(VALUE(N104)>=20,(N104)*20,\"\"),\"\"))","v":""},null,null,null,null,null,null,null,null,null,null,null,null,null,null,null,null,null,null,null,null,null,null,null,null,null,null,null,null,null,null,null,null,null,null,null,null,null,null,null,null,null,null,null,null,null,null,null,null,null,null,null,null,null,null,null,null,null,null,null,null,null,null,null,null,null,null,null,null,null,null,null,null,null,null,null,null,null,null,null,null,null,null,null,null,null,null,null,null,null,null,null,null,137.5,140.5,0,{"$f":"IF(OR(EL75=1,EL75=4),\"\",IF(TRIM(N105)<>\"\",N105*EK104,\"\"))","v":""}]
[null,null,null,{"$f":"IF(OR(EL75=1,EL75=4),\"\",\"TopChoice® (1-19 bags)\")","v":"TopChoice® (1-19 bags)"},null,null,null,null,null,{"$f":"IF(EL75<>2,\"\",\"***\")","v":""},{"$f":"IF(OR(EL75=1,EL75=4),\"\",\"50 lb/bag\")","v":"50 lb/bag"},null,null,null,null,null,{"$f":"IF(OR(EL75=1,EL75=4),\"\",IF($EL$75=1,EM104,IF($EL$75=2,EL104,EK104)))","v":137.5},null,null,null,2,null,null,null,{"$f":"IF(OR(EL75=1,EL75=4),\"\",IF(TRIM(U105)<>\"\",U105*43.56,\"\"))","v":87.12},null,null,null,null,{"$f":"IF(OR(EL75=1,EL75=4),\"\",IF(TRIM(Y105)<>\"\",IF(TRIM(N105)<>\"\",(N105*50)/Y105,50/Y105),\"\"))","v":0.57392102846648296},null,null,null,null,{"$f":"IF(OR(EL75=1,EL75=4),\"\",IF(TRIM(N105)<>\"\",N105*Q105,\"\"))","v":""},null,null,null,null,null,null,{"$f":"IF(OR(EL75=1,EL75=4),\"\",\"$10/bag\")","v":"$10/bag"},null,null,null,null,null,{"$f":"IF(OR(EL75=1,EL75=4),\"\",IF(TRIM(N105)<>\"\",(N105)*10,\"\"))","v":""},null,null,null,null,null,null,null,null,null,null,null,null,null,null,null,null,null,null,null,null,null,null,null,null,null,null,null,null,null,null,null,null,null,null,null,null,null,null,null,null,null,null,null,null,null,null,null,null,null,null,null,null,null,null,null,null,null,null,null,null,null,null,null,null,null,null,null,null,null,null,null,null,null,null,null,null,null,null,null,null,null,null,null,null,null,null,null,null,null,null,null,null,625,{"$f":"EK105 + (EK105*0.02175)","v":638.59375},{"$f":"EK105 + (EK105*0.007)","v":629.375},{"$f":"IF(TRIM(AI106)<>\"\",N106*EK105,\"\")","v":""}]
[null,null,null,{"$f":"IF(EL75=2,\"\",\"Signature XTRA Stressgard\")","v":"Signature XTRA Stressgard"},null,null,null,null,null,null,{"$f":"IF(EL75=2,\"\",\"4 X 5.5 lbs/case\")","v":"4 X 5.5 lbs/case"},null,null,null,null,null,{"$f":"IF($EL$75=1,EM105,IF($EL$75=2,\"\",EK105))","v":625},null,null,null,4,null,null,null,{"$f":"IF(EL75=2,\"\",IF(TRIM(U106)<>\"\",U106*43.56,\"\"))","v":174.24},null,null,null,null,{"$f":"IF(EL75=2,\"\",IF(TRIM(Y106)<>\"\",IF(TRIM(N106)<>\"\",(N106*(22*16))/Y106,(22*16)/Y106),\"\"))","v":2.0202020202020199},null,null,null,null,{"$f":"IF(EL75=2,\"\",IF(TRIM(N106)<>\"\",N106*Q106,\"\"))","v":""},null,null,null,null,null,null,"$10/bottle – 88 lb",null,null,null,null,null,{"$f":"IF((VALUE(EP61))>=88,IF(TRIM(N106)<>\"\",((VALUE(N106))*4)*10,\"\"),\"\")","v":""},null,null,null,null,null,null,null,null,null,null,null,null,null,null,null,null,null,null,null,null,null,null,null,null,null,null,null,null,null,null,null,null,null,null,null,null,null,null,null,null,null,null,null,null,null,null,null,null,null,null,null,null,null,null,null,null,null,null,null,null,null,null,null,null,null,null,null,null,null,null,null,null,null,null,null,null,null,null,null,null,null,null,null,null,null,null,null,null,null,null,null,null,1133.25,1157.8981874999999,1141.1827499999999,{"$f":"IF(TRIM(N107)<>\"\",N107*EK106,\"\")","v":""}]
[null,null,null,{"$f":"IF(EL75=2,\"Chipco Signature\",CONCATENATE(\"Chipco Signature\",\"™\"))","v":"Chipco Signature™"},null,null,null,null,null,null,"8 X 5.5 lbs/case",null,null,null,null,null,{"$f":"IF($EL$75=1,EM106,IF($EL$75=2,EL106,EK106))","v":1133.25},null,null,null,4,null,null,null,{"$f":"IF(TRIM(U107)<>\"\",U107*43.56,\"\")","v":174.24},null,null,null,null,{"$f":"IF(TRIM(Y107)<>\"\",IF(TRIM(N107)<>\"\",(N107*(44*16))/Y107,(44*16)/Y107),\"\")","v":4.0404040404040398},null,null,null,null,{"$f":"IF(TRIM(N107)<>\"\",N107*Q107,\"\")","v":""},null,null,null,null,null,null,"$10/bottle – 88 lb",null,null,null,null,null,{"$f":"IF((VALUE(EP62))>=88,IF(TRIM(N107)<>\"\",((VALUE(N107))*8)*10,\"\"),\"\")","v":""},null,null,null,null,null,null,null,null,null,null,null,null,null,null,null,null,null,null,null,null,null,null,null,null,null,null,null,null,null,null,null,null,null,null,null,null,null,null,null,null,null,null,null,null,null,null,null,null,null,null,null,null,null,null,null,null,null,null,null,null,null,null,null,null,null,null,null,null,null,null,null,null,null,null,null,null,null,null,null,null,null,null,null,null,null,null,null,null,null,null,null,null,93,95.022750000000002,93.650999999999996,{"$f":"IF(TRIM(N108)<>\"\",N108*EK107,\"\")","v":""}]
[null,null,null,"Specticle G",null,null,null,null,null,null,"50 lb/bag",null,null,null,null,null,{"$f":"IF($EL$75=1,EM107,IF($EL$75=2,EL107,EK107))","v":93},null,null,null,4.5913680000000001,null,null,null,199.99999008,null,null,null,null,{"$f":"IF(TRIM(Y108)<>\"\",IF(TRIM(N108)<>\"\",(N108*(50))/Y108,(50)/Y108),\"\")","v":0.25000001240000064},null,null,null,null,"",null,null,null,null,null,null,"$5/bag – 40 bag",null,null,null,null,null,{"$f":"IF(TRIM(N108)<>\"\",IF(VALUE(EP58)>=40,(N108)*5,\"\"),\"\")","v":""},null,null,null,null,null,null,null,null,null,null,null,null,null,null,null,null,null,null,null,null,null,null,null,null,null,null,null,null,null,null,null,null,null,null,null,null,null,null,null,null,null,null,null,null,null,null,null,null,null,null,null,null,null,null,null,null,null,null,null,null,null,null,null,null,null,null,null,null,null,null,null,null,null,null,null,null,null,null,null,null,null,null,null,null,null,null,null,null,null,null,null,null,550,561.96249999999998,553.85,{"$f":"IF(EL75=2,\"\",IF(EL75=4,IF(TRIM(N109)<>\"\",N109*EK108,\"\"),IF(AND(DP192<>\"\",TRIM(N109)<>\"\"),(DP192+N109)*EK108,IF(TRIM(N109)<>\"\",N109*EK108,IF(TRIM(DP192)<>\"\",DP192*EK108,\"\")))))","v":""}]
[null,null,null,{"$f":"IF(EL75=2,\"\",\"Exteris Stressgard\")","v":"Exteris Stressgard"},null,null,null,null,{"$f":"IF(EL75=4,\"₦\",\"\")","v":""},null,{"$f":"IF(EL75=2,\"\",\"2 X 2.5 gal/case\")","v":"2 X 2.5 gal/case"},null,null,null,null,null,{"$f":"IF($EL$75=1,EM108,IF($EL$75=2,EL108,EK108))","v":550},null,null,null,4,null,null,null,{"$f":"IF(EL75=2,\"\",IF(TRIM(U109)<>\"\",U109*43.56,\"\"))","v":174.24},null,null,null,null,{"$f":"IF(EL75=2,\"\",IF(TRIM(Y109)<>\"\",IF(TRIM(N109)<>\"\",(N109*(5*128))/Y109,(5*128)/Y109),\"\"))","v":3.6730945821854912},null,null,null,null,{"$f":"IF(EL75=2,\"\",IF(EL75=4,IF(TRIM(N109)<>\"\",N109*Q109,\"\"),IF(AND(TRIM(N109)<>\"\",DP192<>\"\"),DP192*Q109+N109*Q109,IF(TRIM(N109)<>\"\",N109*Q109,IF(TRIM(DP192)<>\"\",DP192*Q109,\"\")))))","v":""},null,null,null,null,null,null,null,null,null,null,null,null,null,null,null,null," NS Included",null,null,null,null,null,null,null,null,null,null,null,null,null,null,null,null,null,null,null,null,null,null,null,null,null,null,null,null,null,null,null,null,null,null,null,null,null,null,null,null,null,null,null,null,null,null,null,null,null,null,null,null,null,null,null,null,null,null,null,null,null,null,null,null,null,null,null,null,null,null,null,null,null,null,null,null,null,null,null,null,null,null,null,null,null,null,null,null,2284.8000000000002,2334.4944,2300.7936,{"$f":"IF(TRIM(N110)<>\"\",N110*EK109,\"\")","v":""}]
[null,null,null,{"$f":"IF(OR(EL75=1,EL75=4),\"\",\"Revolver®\")","v":"Revolver®"},null,null,null,null,null,null,{"$f":"IF(OR(EL75=1,EL75=4),\"\",\"4 X 87 oz/case\")","v":"4 X 87 oz/case"},null,null,null,null,null,{"$f":"IF(OR(EL75=1,EL75=4),\"\",IF($EL$75=1,EM109,IF($EL$75=2,EL109,EK109)))","v":2284.8000000000002},null,null,null,0.4,null,null,null,{"$f":"IF(OR(EL75=1,EL75=4),\"\",IF(TRIM(U110)<>\"\",U110*43.56,\"\"))","v":17.424000000000003},null,null,null,null,{"$f":"IF(OR(EL75=1,EL75=4),\"\",IF(TRIM(Y110)<>\"\",IF(TRIM(N110)<>\"\",(N110*(4*87))/Y110,(4*87)/Y110),\"\"))","v":19.972451790633606},null,null,null,null,{"$f":"IF(OR(EL75=1,EL75=4),\"\",IF(TRIM(N110)<>\"\",N110*Q110,\"\"))","v":""},null,null,null,null,null,null,null,null,null,null,null,null,null,null,null,null,null,null,null,null,null,null,null,null,null,null,null,null,null,null,null,null,null,null,null,null,null,null,null,null,null,null,null,null,null,null,null,null,null,null,null,null,null,null,null,null,null,null,null,null,null,null,null,null,null,null,null,null,null,null,null,null,null,null,null,null,null,null,null,null,null,null,null,null,null,null,null,null,null,null,null,null,null,null,null,null,null,null,null,null,null,null,null,null,null,2937.6,3001.4928,2958.1632,{"$f":"IF(AND(DP189<>\"\",TRIM(N111)<>\"\"),(DP189+N111)*EK110,IF(TRIM(N111)<>\"\",N111*EK110,IF(TRIM(DP189)<>\"\",DP189*EK110,\"\")))","v":""}]
[null,null,null,"Specticle FLO (14+ gal)",null,null,null,null,null,null,"2 X 1.0 gal/case",null,null,null,null,null,{"$f":"IF($EL$75=1,EM110,IF($EL$75=2,EL110,EK110))","v":2937.6},null,null,null,0.1492,null,null,null,{"$f":"IF(TRIM(U111)<>\"\",U111*43.56,\"\")","v":6.4991520000000005},null,null,null,null,{"$f":"IF(TRIM(Y111)<>\"\",IF(TRIM(N111)<>\"\",(N111*(2*128))/Y111,(2*128)/Y111),\"\")","v":39.389754232552185},null,null,null,null,{"$f":"IF(AND(DP189<>\"\",TRIM(N111)<>\"\"),(DP189+N111)*Q111,IF(TRIM(N111)<>\"\",N111*Q111,IF(TRIM(DP189)<>\"\",DP189*Q111,\"\")))","v":""},null,null,null,null,null,null,null,null,null,null,null,null,null,null,null,null," NS Included",null,null,null,null,null,null,null,null,null,null,null,null,null,null,null,null,null,null,null,null,null,null,null,null,null,null,null,null,null,null,null,null,null,null,null,null,null,null,null,null,null,null,null,null,null,null,null,null,null,null,null,null,null,null,null,null,null,null,null,null,null,null,null,null,null,null,null,null,null,null,null,null,null,null,null,null,null,null,null,null,null,null,null,null,null,null,null,null,3213,3282.8827500000002,3235.491,{"$f":"IF(AND(DP190<>\"\",TRIM(N112)<>\"\"),(DP190+N112)*EK111,IF(TRIM(N112)<>\"\",N112*EK111,IF(TRIM(DP190)<>\"\",DP190*EK111,\"\")))","v":""}]
[null,null,null,"Specticle FLO (1-13 gal)",null,null,null,null,null,null,"2 X 1.0 gal/case",null,null,null,null,null,{"$f":"IF($EL$75=1,EM111,IF($EL$75=2,EL111,EK111))","v":3213},null,null,null,0.1492,null,null,null,6.4991520000000005,null,null,null,null,{"$f":"IF(TRIM(Y112)<>\"\",IF(TRIM(N112)<>\"\",(N112*(2*128))/Y112,(2*128)/Y112),\"\")","v":39.389754232552185},null,null,null,null,{"$f":"IF(AND(DP190<>\"\",TRIM(N112)<>\"\"),(DP190+N112)*Q112,IF(TRIM(N112)<>\"\",N112*Q112,IF(TRIM(DP190)<>\"\",DP190*Q112,\"\")))","v":""},null,null,null,null,null,null,null,null,null,null,null,null,null,null,null,null," NS Included",null,null,null,null,null,null,null,null,null,null,null,null,null,null,null,null,null,null,null,null,null,null,null,null,null,null,null,null,null,null,null,null,null,null,null,null,null,null,null,null,null,null,null,null,null,null,null,null,null,null,null,null,null,null,null,null,null,null,null,null,null,null,null,null,null,null,null,null,null,null,null,null,null,null,null,null,null,null,null,null,null,null,null,null,null,null,null,null,1888.64,1929.71792,1901.8604800000001,{"$f":"IF(TRIM(N113)<>\"\",N113*EK112,\"\")","v":""}]
[null,null,null,"Specticle FLO",null,null,null,null,null,null,"8 X 18 oz/case",null,null,null,null,null,{"$f":"IF($EL$75=1,EM112,IF($EL$75=2,EL112,EK112))","v":1888.64},null,null,null,0.1492,null,null,null,6.4991520000000005,null,null,null,null,{"$f":"IF(TRIM(Y113)<>\"\",IF(TRIM(N113)<>\"\",(N113*(8*18))/Y113,(8*18)/Y113),\"\")","v":22.156736755810602},null,null,null,null,{"$f":"IF(TRIM(N113)<>\"\",N113*Q113,\"\")","v":""},null,null,null,null,null,null,null,null,null,null,null,null,null,null,null,null,null,null,null,null,null,null,null,null,null,null,null,null,null,null,null,null,null,null,null,null,null,null,null,null,null,null,null,null,null,null,null,null,null,null,null,null,null,null,null,null,null,null,null,null,null,null,null,null,null,null,null,null,null,null,null,null,null,null,null,null,null,null,null,null,null,null,null,null,null,null,null,null,null,null,null,null,null,null,null,null,null,null,null,null,null,null,null,null,null,339.07,346.4447725,341.44349,{"$f":"IF(OR(EL75=1,EL75=4),\"\",IF(TRIM(N114)<>\"\",N114*EK113,\"\"))","v":""}]
[null,null,null,{"$f":"IF(OR(EL75=1,EL75=4),\"\",\"Tribute Total\")","v":"Tribute Total"},null,null,null,null,null,null,{"$f":"IF(OR(EL75=1,EL75=4),\"\",\"6 oz/bottle\")","v":"6 oz/bottle"},null,null,null,null,null,{"$f":"IF(OR(EL75=1,EL75=4),\"\",IF($EL$75=1,EM113,IF($EL$75=2,EL113,EK113)))","v":339.07},null,null,null,7.0000000000000007E-2,null,null,null,{"$f":"IF(OR(EL75=1,EL75=4),\"\",IF(TRIM(U114)<>\"\",U114*43.56,\"\"))","v":3.0492000000000004},null,null,null,null,{"$f":"IF(OR(EL75=1,EL75=4),\"\",IF(TRIM(Y114)<>\"\",IF(TRIM(N114)<>\"\",(N114*6)/Y114,6/Y114),\"\"))","v":1.967729240456513},null,null,null,null,{"$f":"IF(OR(EL75=1,EL75=4),\"\",IF(TRIM(N114)<>\"\",N114*Q114,\"\"))","v":""},null,null,null,null,null,null,null,null,null,null,null,null,null,null,null,null,null,null,null,null,null,null,null,null,null,null,null,null,null,null,null,null,null,null,null,null,null,null,null,null,null,null,null,null,null,null,null,null,null,null,null,null,null,null,null,null,null,null,null,null,null,null,null,null,null,null,null,null,null,null,null,null,null,null,null,null,null,null,null,null,null,null,null,null,null,null,null,null,null,null,null,null,null,null,null,null,null,null,null,null,null,null,null,null,null,1650,1685.8875,1661.55,{"$f":"IF(OR(EL75=2,EL75=4),\"\",IF(AND(DP191<>\"\",TRIM(N115)<>\"\"),(DP191+N115)*EK114,IF(TRIM(N115)<>\"\",N115*EK114,IF(TRIM(DP191)<>\"\",DP191*EK114,\"\"))))","v":""}]
[null,null,null,{"$f":"IF(OR(EL75=4,EL75=2),\"\",\"Indemnify®\")","v":"Indemnify®"},null,null,null,null,null,null,{"$f":"IF(OR(EL75=4,EL75=2),\"\",\"17.1 oz/bottle\")","v":"17.1 oz/bottle"},null,null,null,null,null,{"$f":"IF(OR(EL75=4,EL75=2),\"\",IF($EL$75=1,EM114,IF($EL$75=2,EL114,EK114)))","v":1650},null,null,null,0.39,null,null,null,{"$f":"IF(OR(EL75=4,EL75=2),\"\",IF(TRIM(U115)<>\"\",U115*43.56,\"\"))","v":16.988400000000002},null,null,null,null,{"$f":"IF(OR(EL75=4,EL75=2),\"\",IF(TRIM(Y115)<>\"\",IF(TRIM(N115)<>\"\",(N115*17.1)/Y115,17.1/Y115),\"\"))","v":1.0065691883873702},null,null,null,null,{"$f":"IF(OR(EL75=4,EL75=2),\"\",IF(AND(TRIM(N115)<>\"\",DP191<>\"\"),DP191*Q115+N115*Q115,IF(TRIM(N115)<>\"\",N115*Q115,IF(TRIM(DP191)<>\"\",DP191*Q115,\"\"))))","v":""},null,null,null,null,null,null,null,null,null,null,null,null,null,null,null,null," NS Included",null,null,null,null,null,null,null,null,null,null,null,null,null,null,null,null,null,null,null,null,null,null,null,null,null,null,null,null,null,null,null,null,null,null,null,null,null,null,null,null,null,null,null,null,null,null,null,null,null,null,null,null,null,null,null,null,null,null,null,null,null,null,null,null,null,null,null,null,null,null,null,null,null,null,null,null,null,null,null,null,null,null,null,null,null,null,null,null,null,null,null,{"$f":"IF(TRIM(N117)<>\"\",N117*Q117,\"\")","v":""}]
[null,null,null,"     NON-AGENCY PRODUCTS",null,null,null,null,null,null,null,null,null,null,null,null,null,null,null,null,null,null,null,null,null,null,null,null,null,null,null,null,null,null,null,null,null,null,null,null,null,null,null,null,null,null,null,null,null,null,null,null,null,null,null,null,null,null,null,null,null,null,null,null,null,null,null,null,null,null,null,null,null,null,null,null,null,null,null,null,null,null,null,null,null,null,null,null,null,null,null,null,null,null,null,null,null,null,null,null,null,null,null,null,null,null,null,null,null,null,null,null,null,null,null,null,null,null,null,null,null,null,null,null,null,null,null,null,null,null,null,null,null,null,null,null,null,null,null,null,null,null,null,""]
[null,null,null,"26GT",null,null,null,null,null,null,"  2 X 2.5 gal/case",null,null,null,null,null,null,null,null,null,4,null,null,null,{"$f":"IF(TRIM(U117)<>\"\",U117*43.56,\"\")","v":174.24},null,null,null,null,{"$f":"IF(TRIM(Y117)<>\"\",IF(TRIM(N117)<>\"\",(N117*(5*128))/Y117,(5*128)/Y117),\"\")","v":3.6730945821854912},null,null,null,null,{"$f":"IF(AND(TRIM(N117)<>\"\",TRIM(Q117)<>\"\"),N117*Q117,\"\")","v":""},null,null,null,null,null,null,"  $20/gal – 40 gal",null,null,null,null,null,{"$f":"IF(AND(TRIM(N117)<>\"\",TRIM(Q117)<>\"\"),IF(VALUE(EP64)>=40,((N117)/0.2)*20,\"\"),\"\")","v":""},null,null,null,null,null,null,null,null,null,null,null,null,null,null,null,null,null,null,null,null,null,null,null,null,null,null,null,null,null,null,null,null,null,null,null,null,null,null,null,null,null,null,null,null,null,null,null,null,null,null,null,null,null,null,null,null,null,null,null,null,null,null,null,null,null,null,null,null,null,null,null,null,null,null,null,null,null,null,null,null,null,null,null,null,null,null,null,null,null,null,null,null,null,null,null,""]
[null,null,null,"Compass®",null,null,null,null,null,null,"20 X 8 oz/drum",null,null,null,null,null,null,null,null,null,0.25,null,null,null,{"$f":"IF(TRIM(U118)<>\"\",U118*43.56,\"\")","v":10.89},null,null,null,null,{"$f":"IF(TRIM(Y118)<>\"\",IF(TRIM(N118)<>\"\",(N118*(20*8))/Y118,(20*8)/Y118),\"\")","v":14.692378328741965},null,null,null,null,{"$f":"IF(AND(TRIM(N118)<>\"\",TRIM(Q118)<>\"\"),N118*Q118,\"\")","v":""},null,null,null,null,null,null,"$50lb – 8 lb",null,null,null,null,null,{"$f":"IF(AND(TRIM(N118)<>\"\",TRIM(Q118)<>\"\"),IF((VALUE(EP66))>=8,(((VALUE(N118))*10))*50,\"\"),\"\")","v":""},null,null,null,null,null,null,null,null,null,null,null,null,null,null,null,null,null,null,null,null,null,null,null,null,null,null,null,null,null,null,null,null,null,null,null,null,null,null,null,null,null,null,null,null,null,null,null,null,null,null,null,null,null,null,null,null,null,null,null,null,null,null,null,null,null,null,null,null,null,null,null,null,null,null,null,null,null,null,null,null,null,null,null,null,null,null,null,null,null,null,null,null,null,null,null,{"$f":"IF(TRIM(N120)<>\"\",N120*Q120,\"\")","v":""}]
[null,null,null,"Compass",null,null,null,null,null,null,"4 X 1.0 lb/case",null,null,null,null,null,null,null,null,null,0.25,null,null,null,10.89,null,null,null,null,{"$f":"IF(TRIM(Y119)<>\"\",IF(TRIM(N119)<>\"\",(N119*(64))/Y119,(64)/Y119),\"\")","v":5.8769513314967856},null,null,null,null,"",null,null,null,null,null,null,"$50lb – 8 lb",null,null,null,null,null,{"$f":"IF(AND(TRIM(N119)<>\"\",TRIM(Q119)<>\"\"),IF((VALUE(EP67))>=8,(((VALUE(N119))*4))*50,\"\"),\"\")","v":""},null,null,null,null,null,null,null,null,null,null,null,null,null,null,null,null,null,null,null,null,null,null,null,null,null,null,null,null,null,null,null,null,null,null,null,null,null,null,null,null,null,null,null,null,null,null,null,null,null,null,null,null,null,null,null,null,null,null,null,null,null,null,null,null,null,null,null,null,null,null,null,null,null,null,null,null,null,null,null,null,null,null,null,null,null,null,null,null,null,null,null,null,null,null,null,{"$f":"IF(EL75=2,\"\",IF(TRIM(N121)<>\"\",N121*Q121,\"\"))","v":""}]
[null,null,null,"ProStar 70 WG",null,null,null,null,{"$f":"IF(EL75=4,\"₦\",\"\")","v":""},null,"4 X 3 lb/case",null,null,null,null,null,null,null,null,null,2.2000000000000002,null,null,null,{"$f":"IF(TRIM(U120)<>\"\",U120*43.56,\"\")","v":95.832000000000008},null,null,null,null,{"$f":"IF(TRIM(Y120)<>\"\",IF(TRIM(N120)<>\"\",(N120*192)/Y120,192/Y120),\"\")","v":2.0035061357375405},null,null,null,null,{"$f":"IF(AND(TRIM(N120)<>\"\",TRIM(Q120)<>\"\"),N120*Q120,\"\")","v":""},null,null,null,null,null,null,"$3 lb – 24 lb",null,null,null,null,null,{"$f":"IF(AND(TRIM(N120)<>\"\",TRIM(Q120)<>\"\"),IF((VALUE(EP68))>=24,((VALUE(N120))*12)*3,\"\"),\"\")","v":""},null,null,null,null,null,null,null,null,null,null,null,null,null,null,null,null,null,null,null,null,null,null,null,null,null,null,null,null,null,null,null,null,null,null,null,null,null,null,null,null,null,null,null,null,null,null,null,null,null,null,null,null,null,null,null,null,null,null,null,null,null,null,null,null,null,null,null,null,null,null,null,null,null,null,null,null,null,null,null,null,null,null,null,null,null,null,null,null,null,null,null,null,null,null,null,""]
[null,null,null,{"$f":"IF(EL75=2,\"\",\"Acclaim® Extra\")","v":"Acclaim® Extra"},null,null,null,null,null,null,{"$f":"IF(EL75=2,\"\",\"4 X 1.0 gal/case\")","v":"4 X 1.0 gal/case"},null,null,null,null,null,null,null,null,null,0.5,null,null,null,{"$f":"IF(EL75=2,\"\",IF(TRIM(U121)<>\"\",U121*43.56,\"\"))","v":21.78},null,null,null,null,{"$f":"IF(EL75=2,\"\",IF(TRIM(Y121)<>\"\",IF(TRIM(N121)<>\"\",(N121*(4*128))/Y121,(4*128)/Y121),\"\"))","v":23.507805325987142},null,null,null,null,{"$f":"IF(EL75=2,\"\",IF(AND(TRIM(N121)<>\"\",TRIM(Q121)<>\"\"),N121*Q121,\"\"))","v":""},null,null,null,null,null,null,{"$f":"IF(EL75=2,\"\",\"$90/gal\")","v":"$90/gal"},null,null,null,null,null,{"$f":"IF(EL75=2,\"\",IF(AND(TRIM(N121)<>\"\",TRIM(Q121)<>\"\"),IF(VALUE(N121)>=0.25,((N121)/0.25)*90,\"\"),\"\"))","v":""},null,null,null,null,null,null,null,null,null,null,null,null,null,null,null,null,null,null,null,null,null,null,null,null,null,null,null,null,null,null,null,null,null,null,null,null,null,null,null,null,null,null,null,null,null,null,null,null,null,null,null,null,null,null,null,null,null,null,null,null,null,null,null,null,null,null,null,null,null,null,null,null,null,null,null,null,null,null,null,null,null,null,null,null,null,null,null,null,null,null,null,null,null,null,null,""]
[null,null,null,"Chipco Signature",null,null,null,null,null,null,"  4 X 5.5 lbs/case",null,null,null,null,null,null,null,null,null,4,null,null,null,174.24,null,null,null,null,{"$f":"IF(TRIM(Y122)<>\"\",IF(TRIM(N122)<>\"\",(N122*(22*16))/Y122,(22*16)/Y122),\"\")","v":2.0202020202020199},null,null,null,null,"",null,null,null,null,null,null,"$10/bottle – 88 lb",null,null,null,null,null,{"$f":"IF(AND(TRIM(N122)<>\"\",TRIM(Q122)<>\"\"),IF((VALUE(EP62))>=88,((VALUE(N122))*4)*10,\"\"),\"\")","v":""},null,null,null,null,null,null,null,null,null,null,null,null,null,null,null,null,null,null,null,null,null,null,null,null,null,null,null,null,null,null,null,null,null,null,null,null,null,null,null,null,null,null,null,null,null,null,null,null,null,null,null,null,null,null,null,null,null,null,null,null,null,null,null,null,null,null,null,null,null,null,null,null,null,null,null,null,null,null,null,null,null,null,null,null,null,null,null,null,null,null,null,null,null,null,null,""]
[null,null,null,{"$f":"IF(EL75=2,\"\",\"Dylox® 420 SL\")","v":"Dylox® 420 SL"},null,null,null,null,null,null,{"$f":"IF(EL75=2,\"\",\"2 X 2.5 gal/case\")","v":"2 X 2.5 gal/case"},null,null,null,null,null,null,null,null,null,6.9,null,null,null,300.56400000000002,null,null,null,null,{"$f":"IF(TRIM(Y123)<>\"\",IF(TRIM(N123)<>\"\",(N123*(5*128))/Y123,(5*128)/Y123),\"\")","v":2.1293301925712993},null,null,null,null,{"$f":"IF(EL75=2,\"\",IF(AND(TRIM(N123)<>\"\",TRIM(Q123)<>\"\"),N123*Q123,\"\"))","v":""},null,null,null,null,null,null,null,null,null,null,null,null,null,null,null,null,null,null,null,null,null,null,null,null,null,null,null,null,null,null,null,null,null,null,null,null,null,null,null,null,null,null,null,null,null,null,null,null,null,null,null,null,null,null,null,null,null,null,null,null,null,null,null,null,null,null,null,null,null,null,null,null,null,null,null,null,null,null,null,null,null,null,null,null,null,null,null,null,null,null,null,null,null,null,null,null,null,null,null,null,null,null,null,null,null,null,null,null,""]
[null,null,null,{"$f":"IF(EL75=4,\"\",\"Forbid®\")","v":"Forbid®"},null,null,null,null,null,null,{"$f":"IF(EL75=4,\"\",\"6 X 8 oz/case\")","v":"6 X 8 oz/case"},null,null,null,null,null,null,null,null,null,null,null,null,null,null,null,null,null,null,null,null,null,null,null,{"$f":"IF(EL75=4,\"\",IF(AND(TRIM(N124)<>\"\",TRIM(Q124)<>\"\"),N124*Q124,\"\"))","v":""},null,null,null,null,null,null,null,null,null,null,null,null,null,null,null,null,null,null,null,null,null,null,null,null,null,null,null,null,null,null,null,null,null,null,null,null,null,null,null,null,null,null,null,null,null,null,null,null,null,null,null,null,null,null,null,null,null,null,null,null,null,null,null,null,null,null,null,null,null,null,null,null,null,null,null,null,null,null,null,null,null,null,null,null,null,null,null,null,null,null,null,null,null,null,null,null,null,null,null,null,null,null,null,null,null,null,null,null,""]
[null,null,null,"Proxy®",null,null,null,null,null,null,"2 X 2.5 gal/case",null,null,null,null,null,null,null,null,null,5,null,null,null,{"$f":"IF(TRIM(U125)<>\"\",U125*43.56,\"\")","v":217.8},null,null,null,null,{"$f":"IF(TRIM(Y125)<>\"\",IF(TRIM(N125)<>\"\",(N125*(5*128))/Y125,(5*128)/Y125),\"\")","v":2.9384756657483928},null,null,null,null,{"$f":"IF(AND(TRIM(N125)<>\"\",TRIM(Q125)<>\"\"),N125*Q125,\"\")","v":""},null,null,null,null,null,null,null,null,null,null,null,null,null,null,null,null,null,null,null,null,null,null,null,null,null,null,null,null,null,null,null,null,null,null,null,null,null,null,null,null,null,null,null,null,null,null,null,null,null,null,null,null,null,null,null,null,null,null,null,null,null,null,null,null,null,null,null,null,null,null,null,null,null,null,null,null,null,null,null,null,null,null,null,null,null,null,null,null,null,null,null,null,null,null,null,null,null,null,null,null,null,null,null,null,null,null,null,null,""]
[null,null,null,{"$f":"IF(OR(EL75=1,EL75=4),\"\",\"Revolver\")","v":"Revolver"},null,null,null,null,null,null,{"$f":"IF(OR(EL75=1,EL75=4),\"\",\"4 X 32 oz/case\")","v":"4 X 32 oz/case"},null,null,null,null,null,null,null,null,null,0.4,null,null,null,{"$f":"IF(OR(EL75=1,EL75=4),\"\",IF(TRIM(U126)<>\"\",U126*43.56,\"\"))","v":17.424000000000003},null,null,null,null,{"$f":"IF(OR(EL75=1,EL75=4),\"\",IF(TRIM(Y126)<>\"\",IF(TRIM(N126)<>\"\",(N126*128)/Y126,128/Y126),\"\"))","v":7.3461891643709816},null,null,null,null,{"$f":"IF(OR(EL75=1,EL75=4),\"\",IF(AND(TRIM(N126)<>\"\",TRIM(Q126)<>\"\"),N126*Q126,\"\"))","v":""},null,null,null,null,null,null,null,null,null,null,null,null,null,null,null,null,null,null,null,null,null,null,null,null,null,null,null,null,null,null,null,null,null,null,null,null,null,null,null,null,null,null,null,null,null,null,null,null,null,null,null,null,null,null,null,null,null,null,null,null,null,null,null,null,null,null,null,null,null,null,null,null,null,null,null,null,null,null,null,null,null,null,null,null,null,null,null,null,null,null,null,null,null,null,null,null,null,null,null,null,null,null,null,null,null,null,null,null,""]
[null,null,null,"Prograss®",null,null,null,null,null,null,"  2 X 2.5 gal/case",null,null,null,null,null,null,null,null,null,1.5,null,null,null,{"$f":"IF(TRIM(U127)<>\"\",U127*43.56,\"\")","v":65.34},null,null,null,null,{"$f":"IF(TRIM(Y127)<>\"\",IF(TRIM(N127)<>\"\",(N127*(5*128))/Y127,(5*128)/Y127),\"\")","v":9.7949188858279754},null,null,null,null,""]
[null,null,null,"Specticle Total",null,null,null,null,null,null,"4 x 144 oz/case",null,null,null,null,null,null,null,null,null,16,null,null,null,{"$f":"IF(TRIM(U128)<>\"\",U128*43.56,\"\")","v":696.96},null,null,null,null,{"$f":"IF(TRIM(Y128)<>\"\",IF(TRIM(N128)<>\"\",(N128*(4.5*128))/Y128,(4.5*128)/Y128),\"\")","v":0.82644628099173545},null,null,null,null,{"$f":"IF(AND(TRIM(N128)<>\"\",TRIM(Q128)<>\"\"),N128*Q128,\"\")","v":""},null,null,null,null,null,null,null,null,null,null,null,null,null,null,null,null,null,null,null,null,null,null,null,null,null,null,null,null,null,null,null,null,null,null,null,null,null,null,null,null,null,null,null,null,null,null,null,null,null,null,null,null,null,null,null,null,null,null,null,null,null,null,null,null,null,null,null,null,null,null,null,null,null,null,null,null,null,null,null,null,null,null,null,null,null,null,null,null,null,null,null,null,null,null,null,null,null,null,null,null,null,null,null,null,null,null,null,"PAK$",{"$f":"IF(TRIM(EN89)<>\"\",EN89,\"\")","v":0}]
[null,null,null,null,null,null,null,null,null,null,null,null,null,null,null,null,null,null,null,null,null,null,null,null,null,null,null,null,null,null,null,null,null,null,"(B)",null,{"$f":"IF(SUM(AI117:AN128,AI93:AN115)>0,SUM(AI117:AN128,AI93:AN115),\"\")","v":""},null,null,null,null,null,null,null,null,null,null,"(D)",{"$f":"IF(SUM(AV93:AY108,AV117:AY122)>0,SUM(AV93:AY108,AV117:AY122),\"\")","v":""}]
[]
[]
[]
[null,null,null,null,null,null,null,null,null,null,null,null,null,null,null,null,null,null,null,null,null,null,null,null,null,null,null,null,null,null,null,null,null,null,null,null,null,null,null,null,null,null,null,null,null,null,null,null,null,null,null,null,null,null,null,null,null,null,null,null,null,null,null,null,null,null,null,null,null,null,null,null,null,null,null,null,null,null,null,null,null,null,null,null,null,null,null,null,null,null,null,null,null,null,null,null,null,null,null,null,null,null,null,null,null,null,null,null,null,null,null,null,null,null,null,null,null,null,null,null,null,null,null,null,null,null,null,null,null,null,null,null,null,null,null,null,null,null,null,null,null,null,null,{"$f":"SUM(EN92:EN129)","v":0}]
[null,null,null,null,null,null,null,null,null,null,null,null,null,null,null,null,null,null,null,null,null,null,null,null,null,null,null,"NOW Solutions Participants",null,null,null,null,null,null,null,null,null,null,null,null,null,null,{"$f":"IF(EQ3=TRUE,\"Your NOW Solutions Purchases are now INCLUDED in this calculation.\",\"(Enter NOW Solutions Purchase Quantities. )\")","v":"(Enter NOW Solutions Purchase Quantities. )"}]
[null,null,null,{"$f":"EC37","v":""}]
[null,null,null,"CALCULATE YOUR REBATE",null,null,null,null,null,null,null,null,null,null,null,null,null,null,null,null,null,null,null,null,null,null,null,null,null,null,null,null,null,null,null,null,null,null,null,null,null,null,{"$f":"IF(EL75=4,\"₦\",\"\")","v":""},{"$f":"IF(EL75=4,\"Not for sale, sale into, distribution and/or use in Nassau and Suffolk counties of New York State.\",\"\")","v":""}]
[null,null,null,"PURCHASE TOTAL+",null,null,null,null,"BASE\nBONUS",null,null,"OCTOBER\nBONUS**",null,"BAYER PAK\nBONUS++",null,null,null,"..(C) TOTAL PROGRAM\nREBATE+++"]
[]
[null,null,null,"$2,500 < $10,000",null,null,null,null,0.02,null,null,0.01,null,0.01,null,null,null,0.04,null,null,null,null,null,null,null,null,null,"October Bonus",null,null,null,null,null,null,null,null,"Included in NOW Solutions"]
[null,null,null,"$10,000 < $15,000",null,null,null,null,0.03,null,null,0.01,null,0.01,null,null,null,0.05]
[null,null,null,"$15,000 < $25,000",null,null,null,null,0.04,null,null,0.01,null,0.01,null,null,null,0.06]
[null,null,null,"$25,000 < $29,000",null,null,null,null,0.05,null,null,0.01,null,0.01,null,null,null,7.0000000000000007E-2]
[null,null,null,"$29,000 < $40,000",null,null,null,null,"Total program rebate for all purchases Oct 1 - Dec 8, 2017",null,null,null,null,null,null,null,null,0.08]
[null,null,null,"$40,000+",null,null,null,null,null,null,null,null,null,null,null,null,null,0.09]
[]
[null,null,null,null,null,null,null,null,null,null,null,null,null,null,null,null,null,null,null,null,null,null,null,null,null,null,null,null,null,null,null,null,null,null,null,null,null,"SELECT REBATE (D)\n(IF APPLICABLE)"]
[null,null,null,null,null,null,null,"TOTAL $ (A + B)",null,null,null,null,null,null,"TOTAL PROGRAM REBATE_(C)",null,null,null,null,null,null,null,null,null,null,"TOTAL PROGRAM REBATE",null,null,null,null,null,null,null,null,null,null,null,null,null,null,null,null,null,null,null,"GRAND TOTAL REBATE $"]
[null,null,null,null,null,null,null,{"$f":"IF(EU3=2,\"\",EF1)","v":""},null,null,null,null,null,"x",null,{"$f":"IF(EF18<>\"\",EF18,\"\")","v":""},null,null,null,null,null,null,null,"=",null,{"$f":"IF(EU3=2,\"\",IF(EF19>0,EF19,\"\"))","v":""},null,null,null,null,null,null,null,null,"+",null,null,{"$f":"IF(EU3=2,\"\",EF20)","v":""},null,null,null,null,null,null,"=",{"$f":"IF(TRIM(EF25)=\"\",\"\",IF(EF25>0,EF25,\"\"))","v":""}]
[null,null,null,null,null,null,null,null,null,null,null,null,null,null,null,null,null,null,null,null,null,null,null,null,null,null,null,null,null,null,null,null,null,null,null,null,null,null,null,null,null,null,null,null,null,"X 100 =  \nMyBayerRewards POINTS"]
[null,null,null,null,null,null,null,null,null,null,null,null,null,null,"GRAND TOTAL REBATE EARNED   "]
[null,null,null,null,null,null,null,null,null,null,null,null,null,null,null,{"$f":"IF(EN133>=2500,IF(TRIM(AT148)<>\"\",IF(AT148>0,(AT148)/(EF3),\"\"),\"\"),\"\")","v":""},null,null,null,null,null,null,null,null,null,null,null,null,null,null,null,null,null,null,null,null,null,null,null,null,null,null,null,null,null,{"$f":"IF((EU3)<>2,\"\",IF((EF25)=\"\",\"\",(EF25)*100))","v":""}]
[]
[null,"I would like to receive (choose one):     ",null,null,null,null,null,null,null,null,null," MyBayerRewards Points   ",null,null,null,null,null,null,null,"or",null,null,null,"Distributor Credit  ",null,null,null,null,null,null,null,null,null,null,"MyBayerRewards Member ID"]
[]
[null,null,null,"Verify your rebate selection and update your profile at My Bayer Rewards by 1st March, 2018  \nmyrewards.cropscience.bayer.com"]
[]
[]
[]
[null,null,null,null,null,null,null,null,null,null,null,null,null,"Customer Fall Solutions and NOW promotional cumulative purchases (August 1 - December 8, 2017) must be $2,500 or more to qualify for select product rebates and Total Program Rebates.  Participants must be members of MyBayerRewards.  New members signed up before March 1, 2018 will receive 2017 Fall Solutions rebates. All rebates for 2017 Bayer Fall Solutions will be paid based on participant's My Bayer Rewards profile choice as of March 1, 2018 . If no selection is made, the default for Fall Solutions rebate will be Loyalty Points. Purchases qualifying for rebates will be the net of reward or credits. All products must be invoiced between October 1 and December 8, 2017 to qualify. Rebate calculations will be based on the date of actual product invoice and calculator tools are provided for estimation purposes only. Rebates will only be paid or delivered to the company or name listed on the invoice. No checks can be issued to a third party. Please allow for rebates to be fulfilled by August 31, 2018. Only end-user purchases qualify for this program, and purchases must be from a Bayer authorized Distributor or Agent. Resale of product(s) purchased within this program will not qualify for Distributor Credits or My Bayer Rewards points. If questions arise, please contact My Bayer Rewards at 1-888-456-6464 or e-mail mybayerrewards@aimia.com. Bayer reserves the right to modify any portion thereof, or discontinue this program without prior notice.  Bayer CropScience LP, Environmental Science Division, 2 T.W. Alexander Drive, Research Triangle Park, NC 27709. 1-800-331-2867. www.BackedbyBayer.com. Bayer (reg'd), the Bayer Cross (reg'd), 26GT®, Acclaim®, Banol®, Bayleton®,Celsius® Chipco®, Compass®, Dylox®, Exteris®, Fiata®, Forbid®,Indemnify®, Interface®, Merit®, Mirage®, Nortica®, Prostar®, Proxy®, Ronstar®, Signature™ Specticle®, Signature™ Stressgard®, Tartan®, Tribute® and Topchoice® are trademarks of Bayer. Please verify state registration of these products in your state before selling, using or distributing. Not all products and rates are registered in all states. ALWAYS READ AND FOLLOW LABEL INSTRUCTIONS. ©2017 Bayer CropScience LP. 14BPG-059-FS1"]
[]
[]
[]
[]
[]
[]
[]
[null,null,null,"Contact Name",null,null,null,null,null,null,null,null,null,null,null,null,null,null,null,null,null,null,null," Golf Course Number"]
[]
[]
[]
[]
[]
[]
[]
[]
[]
[]
[]
[]
[]
[]
[]
[null,null,null,null,null,null,null,null,null,null,null,null,null,null,null,null,null,null,null,null,null,null,null,null,null,null,null,null,null,null,null,null,null,null,null,null,null,null,null,null,null,null,null,null,null,null,null,null,null,null,null,null,null,null,null,null,null,null,null,null,null,null,null,null,null,null,null,null,null,null,null,null,null,null,null,null,null,null,null,null,null,null,null,null,null,null,null,null,null,null,null,null,null,null,null,null,null,null,null,null,null,null,null,null,null,null,null,null,null,null,null,null,null,null,null,null,null,null,"(Enter the total quantities purchased via NOW Solutions)"]
[]
[null,null,null,null,null,null,null,null,null,null,null,null,null,null,null,null,null,null,null,null,null,null,null,null,null,null,null,null,null,null,null,null,null,null,null,null,null,null,null,null,null,null,null,null,null,null,null,null,null,null,null,null,null,null,null,null,null,null,null,null,null,null,null,null,null,null,null,null,null,null,null,null,null,null,null,null,null,null,null,null,null,null,null,null,null,null,null,null,null,null,null,null,null,null,null,null,null,null,null,null,null,null,null,null,null,null,null,null,null,null,null,null,null,null,null,null,null,null,null,null,"Bayer Leaf Spot PAK"]
[null,null,null,null,null,null,null,null,null,null,null,null,null,null,null,null,null,null,null,null,null,null,null,null,null,null,null,null,null,null,null,null,null,null,null,null,null,null,null,null,null,null,null,null,null,null,null,null,null,null,null,null,null,null,null,null,null,null,null,null,null,null,null,null,null,null,null,null,null,null,null,null,null,null,null,null,null,null,null,null,null,null,null,null,null,null,null,null,null,null,null,null,null,null,null,null,null,null,null,null,null,null,null,null,null,null,null,null,null,null,null,null,null,null,null,null,null,null,null,null,"Warm Season Herbicide Pak"]
[null,null,null,null,null,null,null,null,null,null,null,null,null,null,null,null,null,null,null,null,null,null,null,null,null,null,null,null,null,null,null,null,null,null,null,null,null,null,null,null,null,null,null,null,null,null,null,null,null,null,null,null,null,null,null,null,null,null,null,null,null,null,null,null,null,null,null,null,null,null,null,null,null,null,null,null,null,null,null,null,null,null,null,null,null,null,null,null,null,null,null,null,null,null,null,null,null,null,null,null,null,null,null,null,null,null,null,null,null,null,null,null,null,null,null,null,null,null,null,null,"Bayer Utility Pak"]
[]
[null,null,null,null,null,null,null,null,null,null,null,null,null,null,null,null,null,null,null,null,null,null,null,null,null,null,null,null,null,null,null,null,null,null,null,null,null,null,null,null,null,null,null,null,null,null,null,null,null,null,null,null,null,null,null,null,null,null,null,null,null,null,null,null,null,null,null,null,null,null,null,null,null,null,null,null,null,null,null,null,null,null,null,null,null,null,null,null,null,null,null,null,null,null,null,null,null,null,null,null,null,null,null,null,null,null,null,null,null,null,null,null,null,null,null,null,null,null,null,null,"Specticle FLO (14+ gal)","2 X 1.0 gal/case"]
[null,null,null,null,null,null,null,null,null,null,null,null,null,null,null,null,null,null,null,null,null,null,null,null,null,null,null,null,null,null,null,null,null,null,null,null,null,null,null,null,null,null,null,null,null,null,null,null,null,null,null,null,null,null,null,null,null,null,null,null,null,null,null,null,null,null,null,null,null,null,null,null,null,null,null,null,null,null,null,null,null,null,null,null,null,null,null,null,null,null,null,null,null,null,null,null,null,null,null,null,null,null,null,null,null,null,null,null,null,null,null,null,null,null,null,null,null,null,null,null,"Specticle FLO (1-13 gal)","2 X 1.0 gal/case"]
[null,null,null,null,null,null,null,null,null,null,null,null,null,null,null,null,null,null,null,null,null,null,null,null,null,null,null,null,null,null,null,null,null,null,null,null,null,null,null,null,null,null,null,null,null,null,null,null,null,null,null,null,null,null,null,null,null,null,null,null,null,null,null,null,null,null,null,null,null,null,null,null,null,null,null,null,null,null,null,null,null,null,null,null,null,null,null,null,null,null,null,null,null,null,null,null,null,null,null,null,null,null,null,null,null,null,null,null,null,null,null,null,null,null,null,null,null,null,null,null,"Indemnify®","17.1 oz/bottle"]
[null,null,null,null,null,null,null,null,null,null,null,null,null,null,null,null,null,null,null,null,null,null,null,null,null,null,null,null,null,null,null,null,null,null,null,null,null,null,null,null,null,null,null,null,null,null,null,null,null,null,null,null,null,null,null,null,null,null,null,null,null,null,null,null,null,null,null,null,null,null,null,null,null,null,null,null,null,null,null,null,null,null,null,null,null,null,null,null,null,null,null,null,null,null,null,null,null,null,null,null,null,null,null,null,null,null,null,null,null,null,null,null,null,null,null,null,null,null,null,null,"Exteris® Stressgard®","2 X 2.5 gal/case",{"$f":"IF(EL75=4,\"₦\",\"\")","v":""},{"$f":"IF(EL75=4,\"Not for sale, sale into,\",\"\")","v":""}]
[null,null,null,null,null,null,null,null,null,null,null,null,null,null,null,null,null,null,null,null,null,null,null,null,null,null,null,null,null,null,null,null,null,null,null,null,null,null,null,null,null,null,null,null,null,null,null,null,null,null,null,null,null,null,null,null,null,null,null,null,null,null,null,null,null,null,null,null,null,null,null,null,null,null,null,null,null,null,null,null,null,null,null,null,null,null,null,null,null,null,null,null,null,null,null,null,null,null,null,null,null,null,null,null,null,null,null,null,null,null,null,null,null,null,null,null,null,null,null,null,"Tartan® Stressgard","2 X 2.5 gal/case",null,{"$f":"IF(EL75=4,\"distribution and/or use in Nassau and Suffolk counties of New York State.\",\"\")","v":""}]
[null,null,null,null,null,null,null,null,null,null,null,null,null,null,null,null,null,null,null,null,null,null,null,null,null,null,null,null,null,null,null,null,null,null,null,null,null,null,null,null,null,null,null,null,null,null,null,null,null,null,null,null,null,null,null,null,null,null,null,null,null,null,null,null,null,null,null,null,null,null,null,null,null,null,null,null,null,null,null,null,null,null,null,null,null,null,null,null,null,null,null,null,null,null,null,null,null,null,null,null,null,null,null,null,null,null,null,null,null,null,null,null,null,null,null,null,null,null,null,null,"Mirage® Stressgard","2 X 2.5 gal/case"]

{"sheet":"Sheet1","index":1,"n_rows":0,"n_cols":0,"rows_kept":0,"cut":false,"hidden":false,"merged":[]}